Workbook

Sheet Raw Data
A1: Chipotle Mexican Grill, Inc. (CMG)
A2: $31.63
A5: Chipotle Mexican Grill, Inc. | W5: CMG-US
A6: CMG 169656105 B0X7DZ3 NYSE Common stock | W6: Earnings Per Share
A7: Source: FactSet Fundamentals | X7: Dec '25E
B8: Fiscal Years | L8: Fiscal Quarters | W8: EPS | X8: 1.16
B9: DEC '24 | C9: DEC '23 | D9: DEC '22 | E9: DEC '21 | F9: DEC '20 | G9: DEC '19 | H9: DEC '18 | I9: DEC '17 | J9: DEC '16 | K9: DEC '15 | L9: SEP '25 | M9: JUN '25 | N9: MAR '25 | O9: DEC '24 | P9: SEP '24 | Q9: JUN '24 | R9: MAR '24 | S9: DEC '23 | T9: SEP '23 | U9: JUN '23 | W9: EPS - GAAP | X9: 1.14
I10: Restate | W10: EPS - Non GAAP | X10: 1.16
A12: GAAP/IFRS Income Statement | W12: Product Segments (M)
A13: GAAP/IFRS Income Statement | X13: Dec '25E
A14: Sales | B14: 11,313.90 | C14: 9,871.60 | D14: 8,634.70 | E14: 7,547.10 | F14: 5,984.60 | G14: 5,586.40 | H14: 4,865.00 | I14: 4,476.40 | J14: 3,904.40 | K14: 4,501.20 | L14: 3,003.40 | M14: 3,063.40 | N14: 2,875.30 | O14: 2,845.30 | P14: 2,793.60 | Q14: 2,973.10 | R14: 2,701.80 | S14: 2,516.30 | T14: 2,471.90 | U14: 2,514.80 | W14: Sales | X14: 11,904
A15: Growth (%) | B15: 14.61 | C15: 14.33 | D15: 14.41 | E15: 26.11 | F15: 7.13 | G15: 14.83 | H15: 8.68 | I15: 14.65 | J15: -13.26 | K15: 9.56 | L15: 7.51 | M15: 3.04 | N15: 6.42 | O15: 13.07 | P15: 13.01 | Q15: 18.22 | R15: 14.07 | S15: 15.4 | T15: 11.34 | U15: 13.62 | W15: Restaurant | X15: 11,840
A16: Cost of Goods Sold (COGS) incl. D&A | B16: 8,631.20 | C16: 7,605.00 | D16: 6,859.40 | E16: 6,094.70 | F16: 5,182.10 | G16: 4,656.70 | H16: 4,156.00 | I16: 3,883.50 | J16: 3,552.50 | K16: 3,457.30 | L16: 2,358.40 | M16: 2,316.10 | N16: 2,208.80 | O16: 2,224.90 | P16: 2,165.70 | Q16: 2,197.30 | R16: 2,043.20 | S16: 1,963.50 | T16: 1,900.70 | U16: 1,902.70 | W16: Delivery Service | X16: 59
A17: COGS excluding D&A | B17: 8,296.20 | C17: 7,285.60 | D17: 6,572.50 | E17: 5,840.10 | F17: 4,759.00 | G17: 4,279.90 | H17: 3,954.00 | I17: 3,720.20 | J17: 3,406.20 | K17: 3,326.90 | L17: 2,267.90 | M17: 2,225.20 | N17: 2,121.60 | O17: 2,141.00 | P17: 2,081.40 | Q17: 2,113.70 | R17: 1,960.00 | S17: 1,878.00 | T17: 1,822.10 | U17: 1,823.90
A18: Depreciation & Amortization Expense | B18: 335 | C18: 319.4 | D18: 286.8 | E18: 254.7 | F18: 423.1 | G18: 376.7 | H18: 202 | I18: 163.3 | J18: 146.4 | K18: 130.4 | L18: 90.5 | M18: 90.9 | N18: 87.2 | O18: 83.9 | P18: 84.3 | Q18: 83.6 | R18: 83.2 | S18: 85.5 | T18: 78.5 | U18: 78.8 | W18: Industry Metrics
A19: Depreciation | B19: 335 | C19: 319.4 | D19: 286.8 | E19: 254.7 | F19: 423.1 | G19: 376.7 | H19: 202 | I19: 163.3 | J19: 146.4 | K19: 130.4 | L19: 90.5 | M19: 90.9 | N19: 87.2 | O19: 83.9 | P19: 84.3 | Q19: 83.6 | R19: 83.2 | S19: 85.5 | T19: 78.5 | U19: 78.8 | X19: Dec '25E
A20: Gross Income | B20: 2,682.70 | C20: 2,266.70 | D20: 1,775.30 | E20: 1,452.40 | F20: 802.5 | G20: 929.7 | H20: 709 | I20: 592.9 | J20: 351.8 | K20: 1,043.90 | L20: 645.1 | M20: 747.3 | N20: 666.4 | O20: 620.4 | P20: 627.8 | Q20: 775.8 | R20: 658.6 | S20: 552.8 | T20: 571.3 | U20: 612.1 | W20: Same Store Sales (%) | X20: -1.7
A21: EBIT (Operating Income) | B21: 1,981.60 | C21: 1,628.30 | D21: 1,222.60 | E21: 866.1 | F21: 374.5 | G21: 487.2 | H21: 389.9 | I21: 296.5 | J21: 57.9 | K21: 777.4 | L21: 498.3 | M21: 575.1 | N21: 493.6 | O21: 433.6 | P21: 501.2 | Q21: 600.8 | R21: 454 | S21: 382.8 | T21: 411.8 | U21: 455.6 | W21: Traffic SSS | X21: -2.7
A22: Growth (%) | B22: 21.7 | C22: 33.18 | D22: 41.17 | E22: 131.24 | F22: -23.13 | G22: 24.97 | H22: 31.51 | I22: 412.43 | J22: -92.56 | K22: 8.33 | L22: -0.58 | M22: -4.27 | N22: 8.73 | O22: 13.27 | P22: 21.72 | Q22: 31.88 | R22: 18.79 | S22: 20.35 | T22: 17.58 | U22: 31.09 | W22: Check SSS | X22: 1.2
A23: Margin (%) | B23: 17.51 | C23: 16.5 | D23: 14.16 | E23: 11.48 | F23: 6.26 | G23: 8.72 | H23: 8.01 | I23: 6.62 | J23: 1.48 | K23: 17.27 | L23: 16.59 | M23: 18.77 | N23: 17.17 | O23: 15.24 | P23: 17.94 | Q23: 20.21 | R23: 16.8 | S23: 15.21 | T23: 16.66 | U23: 18.12 | W23: Selling Space Sq. Ft. (millions) | X23: 10.1
A24: Nonoperating Income - Net | B24: 28.6 | C24: -7.8 | D24: -24.1 | E24: -27.8 | F24: -38.9 | G24: -14.8 | H24: -65.1 | I24: -20.7 | J24: -2.3 | K24: 0 | L24: -1.4 | M24: 2.3 | N24: 7.9 | O24: 9.9 | P24: 1.3 | Q24: 7.1 | R24: 6.7 | S24: -1.2 | T24: 1.5 | U24: -7.3 | W24: # Stores at Period End | X24: 4,043
A25: Nonoperating Interest Income | B25: 0 | C25: 0 | D25: 0 | E25: 0 | F25: 3.6 | G25: 14.3 | H25: 10.1 | I25: 4.9 | J25: 3.6 | K25: 6.5 | L25: 0 | M25: 0 | N25: 0 | O25: 0 | P25: 0 | Q25: 0 | R25: 0 | S25: 0 | T25: 0 | U25: 0 | W25: # Stores Closed During Period | X25: 8
A26: Other Income (Expense) | B26: 28.6 | C26: -7.8 | D26: -24.1 | E26: -27.8 | F26: -42.5 | G26: -29.1 | H26: -75.2 | I26: -25.7 | J26: -5.9 | K26: -6.5 | L26: -1.4 | M26: 2.3 | N26: 7.9 | O26: 9.9 | P26: 1.3 | Q26: 7.1 | R26: 6.7 | S26: -1.2 | T26: 1.5 | U26: -7.3 | W26: # Stores Opened | X26: 327
A27: Unusual Expense - Net | B27: 0 | C27: 0 | D27: 17 | E27: 25.5 | F27: 41.9 | G27: 14.2 | H27: 56.3 | I27: 0 | J27: 16.8 | K27: 7.5 | L27: 0 | M27: 0 | N27: 0 | O27: 4.4 | P27: 0 | Q27: 0 | R27: 0 | S27: -0.8 | T27: 0 | U27: 0 | W27: Guidance (Low) | X27: 315
A28: Impairments | B28: - | C28: - | D28: - | E28: - | F28: - | G28: - | H28: - | I28: - | J28: 17.4 | K28: 6.9 | L28: - | M28: - | N28: - | O28: - | P28: - | Q28: - | R28: - | S28: - | T28: - | U28: - | W28: Guidance (High) | X28: 345
A29: Property,Plant & Equipment | B29: - | C29: - | D29: - | E29: - | F29: - | G29: - | H29: - | I29: - | J29: 17.4 | K29: 6.7 | L29: - | M29: - | N29: - | O29: - | P29: - | Q29: - | R29: - | S29: - | T29: - | U29: - | W29: # Stores Relocated During Period | X29: 5
A30: Financial Fixed Assets | B30: - | C30: - | D30: - | E30: - | F30: - | G30: - | H30: - | I30: - | J30: 0 | K30: 0.2 | L30: - | M30: - | N30: - | O30: - | P30: - | Q30: - | R30: - | S30: - | T30: - | U30: - | W30: Non-Comp Contribution (%) | X30: 6.9
A31: Restructuring Expense | B31: 0 | C31: 0 | D31: 7.5 | E31: 5.4 | F31: 6.4 | G31: 14.2 | H31: 27.1 | I31: 0 | J31: 0 | K31: 0 | L31: 0 | M31: 0 | N31: 0 | O31: 0 | P31: 0 | Q31: 0 | R31: 0 | S31: 0 | T31: 0 | U31: 0 | W31: Restaurant Margin (%) | X31: 25.3
A32: Legal Claim Expense | B32: - | C32: - | D32: 9.5 | E32: 20.1 | F32: 35.5 | G32: - | H32: 29.3 | I32: - | J32: - | K32: - | L32: - | M32: - | N32: - | O32: 4.4 | P32: - | Q32: - | R32: - | S32: -0.8 | T32: - | U32: -
A33: Unrealized Valuation Gain/Loss | B33: - | C33: - | D33: - | E33: - | F33: - | G33: - | H33: - | I33: 0 | J33: 0.6 | K33: -0.6 | L33: - | M33: - | N33: - | O33: - | P33: - | Q33: - | R33: - | S33: - | T33: - | U33: - | W33: Income Statement (M)
A34: Investments | B34: - | C34: - | D34: - | E34: - | F34: - | G34: - | H34: - | I34: 0 | J34: 0.6 | K34: -0.6 | L34: - | M34: - | N34: - | O34: - | P34: - | Q34: - | R34: - | S34: - | T34: - | U34: - | X34: Dec '25E
A35: Pretax Income | B35: 2,010.20 | C35: 1,620.50 | D35: 1,181.50 | E35: 812.8 | F35: 293.8 | G35: 458.3 | H35: 268.4 | I35: 275.7 | J35: 38.7 | K35: 769.9 | L35: 497 | M35: 577.4 | N35: 501.5 | O35: 439.1 | P35: 502.6 | Q35: 607.9 | R35: 460.7 | S35: 382.4 | T35: 413.3 | U35: 448.3 | W35: Sales | X35: 11,904
A36: Growth (%) | B36: 24.05 | C36: 37.15 | D36: 45.37 | E36: 176.66 | F36: -35.9 | G36: 70.72 | H36: -2.65 | I36: 611.8 | J36: -94.97 | K36: 7.78 | L36: -1.11 | M36: -5.02 | N36: 8.87 | O36: 14.84 | P36: 21.59 | Q36: 35.62 | R36: 22.33 | S36: 26.03 | T36: 21.58 | U36: 28.75 | W36: Cost of Sales | X36: 3,539
A37: Margin (%) | B37: 17.77 | C37: 16.42 | D37: 13.68 | E37: 10.77 | F37: 4.91 | G37: 8.2 | H37: 5.52 | I37: 6.16 | J37: 0.99 | K37: 17.1 | L37: 16.55 | M37: 18.85 | N37: 17.44 | O37: 15.43 | P37: 17.99 | Q37: 20.45 | R37: 17.05 | S37: 15.19 | T37: 16.72 | U37: 17.82 | W37: Gross Income | X37: 3,009
A38: Income Taxes | B38: 476.1 | C38: 391.8 | D38: 282.4 | E38: 159.8 | F38: -62 | G38: 108.1 | H38: 91.9 | I38: 99.5 | J38: 15.8 | K38: 294.3 | L38: 114.9 | M38: 141.3 | N38: 114.9 | O38: 107.3 | P38: 115.2 | Q38: 152.2 | R38: 101.4 | S38: 100.3 | T38: 100.1 | U38: 106.5 | W38: SG&A Expense | X38: 620
A39: Income Taxes - Current Domestic | B39: 521.8 | C39: 407.7 | D39: 321.7 | E39: 179.3 | F39: -164.4 | G39: 80.2 | H39: 82.5 | I39: 117.1 | J39: 31.9 | K39: 284.7 | L39: - | M39: - | N39: - | O39: - | P39: - | Q39: - | R39: - | S39: - | T39: - | U39: - | W39: Selling & Marketing Expense | X39: -
A40: Income Taxes - Current Foreign | B40: 1.6 | C40: 1.2 | D40: 0.4 | E40: 0.3 | F40: 1 | G40: 0.6 | H40: 0.6 | I40: 0.7 | J40: 0.6 | K40: 0.2 | L40: - | M40: - | N40: - | O40: - | P40: - | Q40: - | R40: - | S40: - | T40: - | U40: - | W40: General & Admin Expense | X40: 630
A41: Income Taxes - Deferred Domestic | B41: -42.9 | C41: -9.5 | D41: -43.4 | E41: -12.6 | F41: 108.6 | G41: 30 | H41: 11 | I41: -17.8 | J41: -14.1 | K41: 11.7 | L41: - | M41: - | N41: - | O41: - | P41: - | Q41: - | R41: - | S41: - | T41: - | U41: - | W41: Compensation and Benefits | X41: 2,995
A42: Income Taxes - Deferred Foreign | B42: -4.4 | C42: -7.6 | D42: 3.8 | E42: -7.2 | F42: -7.2 | G42: -2.7 | H42: -2.3 | I42: -0.5 | J42: -2.5 | K42: -2.3 | L42: - | M42: - | N42: - | O42: - | P42: - | Q42: - | R42: - | S42: - | T42: - | U42: - | W42: EBITDA | X42: 2,314
A43: Consolidated Net Income | B43: 1,534.10 | C43: 1,228.70 | D43: 899.1 | E43: 653 | F43: 355.8 | G43: 350.2 | H43: 176.6 | I43: 176.3 | J43: 22.9 | K43: 475.6 | L43: 382.1 | M43: 436.1 | N43: 386.6 | O43: 331.8 | P43: 387.4 | Q43: 455.7 | R43: 359.3 | S43: 282.1 | T43: 313.2 | U43: 341.8 | W43: EBITDA Non-GAAP | X43: 2,344
A44: Growth (%) | B44: 24.85 | C44: 36.66 | D44: 37.69 | E44: 83.54 | F44: 1.6 | G44: 98.33 | H44: 0.17 | I44: 668.39 | J44: -95.18 | K44: 6.79 | L44: -1.36 | M44: -4.29 | N44: 7.6 | O44: 17.61 | P44: 23.68 | Q44: 33.32 | R44: 23.19 | S44: 26.08 | T44: 21.81 | U44: 31.49 | W44: EBITDA GAAP | X44: 2,305
A45: Margin (%) | B45: 13.56 | C45: 12.45 | D45: 10.41 | E45: 8.65 | F45: 5.94 | G45: 6.27 | H45: 3.63 | I45: 3.94 | J45: 0.59 | K45: 10.57 | L45: 12.72 | M45: 14.24 | N45: 13.45 | O45: 11.66 | P45: 13.87 | Q45: 15.33 | R45: 13.3 | S45: 11.21 | T45: 12.67 | U45: 13.59 | W45: Depr. & Amort. | X45: 360
A46: Net Income | B46: 1,534.10 | C46: 1,228.70 | D46: 899.1 | E46: 653 | F46: 355.8 | G46: 350.2 | H46: 176.6 | I46: 176.3 | J46: 22.9 | K46: 475.6 | L46: 382.1 | M46: 436.1 | N46: 386.6 | O46: 331.8 | P46: 387.4 | Q46: 455.7 | R46: 359.3 | S46: 282.1 | T46: 313.2 | U46: 341.8 | W46: Operating Income | X46: 1,952
A47: Growth (%) | B47: 24.85 | C47: 36.66 | D47: 37.69 | E47: 83.54 | F47: 1.6 | G47: 98.33 | H47: 0.17 | I47: 668.39 | J47: -95.18 | K47: 6.79 | L47: -1.36 | M47: -4.29 | N47: 7.6 | O47: 17.61 | P47: 23.68 | Q47: 33.32 | R47: 23.19 | S47: 26.08 | T47: 21.81 | U47: 31.49 | W47: Operating Income - Non GAAP | X47: 1,966
A48: Margin (%) | B48: 13.56 | C48: 12.45 | D48: 10.41 | E48: 8.65 | F48: 5.94 | G48: 6.27 | H48: 3.63 | I48: 3.94 | J48: 0.59 | K48: 10.57 | L48: 12.72 | M48: 14.24 | N48: 13.45 | O48: 11.66 | P48: 13.87 | Q48: 15.33 | R48: 13.3 | S48: 11.21 | T48: 12.67 | U48: 13.59 | W48: Operating Income - GAAP | X48: 1,972
A49: Net Income available to Common | B49: 1,534.10 | C49: 1,228.70 | D49: 899.1 | E49: 653 | F49: 355.8 | G49: 350.2 | H49: 176.6 | I49: 176.3 | J49: 22.9 | K49: 475.6 | L49: 382.1 | M49: 436.1 | N49: 386.6 | O49: 331.8 | P49: 387.4 | Q49: 455.7 | R49: 359.3 | S49: 282.1 | T49: 313.2 | U49: 341.8 | W49: Interest Expense | X49: 23
A50: Per Share | W50: Pretax Income | X50: 2,029
A51: EPS (recurring) | B51: 1.11 | C51: 0.89 | D51: 0.65 | E51: 0.47 | F51: 0.27 | G51: 0.25 | H51: 0.15 | I51: 0.12 | J51: 0.02 | K51: 0.31 | L51: 0.29 | M51: 0.32 | N51: 0.28 | O51: 0.24 | P51: 0.28 | Q51: 0.33 | R51: 0.26 | S51: 0.2 | T51: 0.23 | U51: 0.25 | W51: Pretax Income - Non GAAP | X51: 2,041
A52: EPS (basic) | B52: 1.12 | C52: 0.89 | D52: 0.65 | E52: 0.46 | F52: 0.25 | G52: 0.25 | H52: 0.13 | I52: 0.12 | J52: 0.02 | K52: 0.31 | L52: 0.29 | M52: 0.32 | N52: 0.29 | O52: 0.24 | P52: 0.28 | Q52: 0.33 | R52: 0.26 | S52: 0.21 | T52: 0.23 | U52: 0.25 | W52: Pretax Income - GAAP | X52: 2,048
A53: Basic Shares Outstanding | B53: 1,368.34 | C53: 1,377.75 | D53: 1,392.55 | E53: 1,406.60 | F53: 1,395.85 | G53: 1,387.00 | H53: 1,391.15 | I53: 1,424.55 | J53: 1,463.25 | K53: 1,554.60 | L53: 1,335.00 | M53: 1,344.96 | N53: 1,354.52 | O53: 1,361.36 | P53: 1,367.04 | Q53: 1,372.80 | R53: 1,372.20 | S53: 1,372.00 | T53: 1,377.50 | U53: 1,380.20 | W53: Tax Expense | X53: 486
A54: Total Shares Outstanding | B54: 1,358.75 | C54: 1,371.30 | D54: 1,381.35 | E54: 1,404.00 | F54: 1,400.05 | G54: 1,387.75 | H54: 1,384.85 | I54: 1,401.30 | J54: 1,440.70 | K54: 1,529.20 | L54: 1,325.68 | M54: 1,341.43 | N54: 1,349.79 | O54: 1,358.75 | P54: 1,363.64 | Q54: 1,371.37 | R54: 1,373.35 | S54: 1,371.30 | T54: 1,374.25 | U54: 1,379.80 | W54: Net Income | X54: 1,553
A55: EPS (diluted) | B55: 1.11 | C55: 0.89 | D55: 0.64 | E55: 0.46 | F55: 0.25 | G55: 0.25 | H55: 0.13 | I55: 0.12 | J55: 0.02 | K55: 0.3 | L55: 0.29 | M55: 0.32 | N55: 0.28 | O55: 0.24 | P55: 0.28 | Q55: 0.33 | R55: 0.26 | S55: 0.2 | T55: 0.23 | U55: 0.25 | W55: Net Income - Non GAAP | X55: 1,553
A56: Diluted Shares Outstanding | B56: 1,376.56 | C56: 1,385.50 | D56: 1,403.10 | E56: 1,425.55 | F56: 1,420.80 | G56: 1,414.75 | H56: 1,398.10 | I56: 1,428.05 | J56: 1,488.50 | K56: 1,574.70 | L56: 1,339.52 | M56: 1,350.24 | N56: 1,360.72 | O56: 1,368.92 | P56: 1,374.61 | Q56: 1,381.52 | R56: 1,381.20 | S56: 1,381.05 | T56: 1,384.05 | U56: 1,387.35 | W56: Net Income - GAAP | X56: 1,527
A57: Total Shares Outstanding | B57: 1,358.75 | C57: 1,371.30 | D57: 1,381.35 | E57: 1,404.00 | F57: 1,400.05 | G57: 1,387.75 | H57: 1,384.85 | I57: 1,401.30 | J57: 1,440.70 | K57: 1,529.20 | L57: 1,325.68 | M57: 1,341.43 | N57: 1,349.79 | O57: 1,358.75 | P57: 1,363.64 | Q57: 1,371.37 | R57: 1,373.35 | S57: 1,371.30 | T57: 1,374.25 | U57: 1,379.80
A58: Earnings Persistence | B58: 84.45 | C58: 84.89 | D58: 85.27 | E58: 86.84 | F58: 85.18 | G58: 59.1 | H58: 84.89 | I58: 78.71 | J58: 66.06 | K58: 79.31 | L58: 89.6 | M58: 89.21 | N58: 89.09 | O58: 84.45 | P58: 80.95 | Q58: 81.11 | R58: 82.94 | S58: 84.89 | T58: 90.28 | U58: 85.97 | W58: Balance Sheet (M)
A59: EBITDA | X59: Dec '25E
A60: EBITDA | B60: 2,316.70 | C60: 1,947.70 | D60: 1,509.50 | E60: 1,120.80 | F60: 797.6 | G60: 864 | H60: 591.9 | I60: 459.8 | J60: 204.2 | K60: 907.7 | L60: 588.8 | M60: 666.1 | N60: 580.8 | O60: 517.4 | P60: 585.6 | Q60: 684.4 | R60: 537.2 | S60: 468.3 | T60: 490.3 | U60: 534.4 | W60: Current Assets | X60: 1,831
A61: EBIT | B61: 1,981.60 | C61: 1,628.30 | D61: 1,222.60 | E61: 866.1 | F61: 374.5 | G61: 487.2 | H61: 389.9 | I61: 296.5 | J61: 57.9 | K61: 777.4 | L61: 498.3 | M61: 575.1 | N61: 493.6 | O61: 433.6 | P61: 501.2 | Q61: 600.8 | R61: 454 | S61: 382.8 | T61: 411.8 | U61: 455.6 | W61: Cash and Cash Equivalents | X61: 832
A62: Depreciation & Amortization Expense | B62: 335 | C62: 319.4 | D62: 286.8 | E62: 254.7 | F62: 423.1 | G62: 376.7 | H62: 202 | I62: 163.3 | J62: 146.4 | K62: 130.4 | L62: 90.5 | M62: 90.9 | N62: 87.2 | O62: 83.9 | P62: 84.3 | Q62: 83.6 | R62: 83.2 | S62: 85.5 | T62: 78.5 | U62: 78.8 | W62: Accounts Receivable | X62: 121
A63: Supplemental | W63: Inventories | X63: 47
A64: Rental Expense | B64: 608.1 | C64: 548.7 | D64: 500.4 | E64: 456.7 | F64: 371.8 | G64: 348.7 | H64: 297.6 | I64: 281.1 | J64: 257.8 | K64: 232.1 | L64: - | M64: - | N64: - | O64: - | P64: - | Q64: - | R64: - | S64: - | T64: - | U64: - | W64: Current Liabilities | X64: 1,205
A65: Stock Option Comp Exp (Net of Tax) | B65: 110 | C65: 107.2 | D65: 84.9 | E65: 160 | F65: 69.9 | G65: 73.9 | H65: 51.5 | I65: 40.4 | J65: 36 | K65: 36.7 | L65: 15.4 | M65: 31.7 | N65: 31.8 | O65: 32.3 | P65: -1.1 | Q65: 38.9 | R65: 31.3 | S65: 25.5 | T65: 31.1 | U65: 27.2 | W65: Accounts Payable | X65: 238
A66: Tax Rate | B66: 23.7 | C66: 24.2 | D66: 23.9 | E66: 19.7 | F66: -21.1 | G66: 23.6 | H66: 34.2 | I66: 36.1 | J66: 40.8 | K66: 38.2 | L66: 23.1 | M66: 24.5 | N66: 22.9 | O66: 24.4 | P66: 22.9 | Q66: 25 | R66: 22 | S66: 26.2 | T66: 24.2 | U66: 23.8 | W66: Total Assets | X66: 9,323
W67: Short-Term Debt | X67: 0
A68: GAAP/IFRS Balance Sheet | W68: Long-Term Debt | X68: 0
A69: GAAP/IFRS Balance Sheet | W69: Total Debt | X69: 0
A70: Assets | W70: Total Goodwill | X70: 22
A71: Cash & Short-Term Investments | B71: 1,423 | C71: 1,295 | D71: 899 | E71: 1,076 | F71: 952 | G71: 881 | H71: 677 | I71: 509 | J71: 418 | K71: 663 | L71: 1,421 | M71: 1,546 | N71: 1,415 | O71: 1,423 | P71: 1,367 | Q71: 1,490 | R71: 1,420 | S71: 1,295 | T71: 1,454 | U71: 1,356 | W71: Net Debt | X71: 269
A72: Cash Only | B72: 749 | C72: 561 | D72: 384 | E72: 815 | F72: 608 | G72: 481 | H72: 250 | I72: 185 | J72: 88 | K72: 248 | L72: 699 | M72: 845 | N72: 726 | O72: 749 | P72: 699 | Q72: 807 | R72: 727 | S72: 561 | T72: 602 | U72: 505 | W72: Working Capital | X72: 697
A73: Total Short Term Investments | B73: 674 | C73: 735 | D73: 515 | E73: 261 | F73: 344 | G73: 400 | H73: 427 | I73: 324 | J73: 330 | K73: 415 | L73: 723 | M73: 702 | N73: 689 | O73: 674 | P73: 669 | Q73: 683 | R73: 692 | S73: 735 | T73: 852 | U73: 851 | W73: Shareholder Equity | X73: 3,168
A74: Short-Term Receivables | B74: 211 | C74: 168 | D74: 155 | E74: 194 | F74: 387 | G74: 108 | H74: 62 | I74: 50 | J74: 46 | K74: 96 | L74: 206 | M74: 186 | N74: 102 | O74: 211 | P74: 175 | Q74: 169 | R74: 90 | S74: 168 | T74: 71 | U74: 61 | W74: Total Liabilities and Equity | X74: -
A75: Accounts Receivables, Net | B75: 144 | C75: 116 | D75: 107 | E75: 100 | F75: 105 | G75: 81 | H75: 62 | I75: 40 | J75: 40 | K75: 38 | L75: 96 | M75: 105 | N75: 102 | O75: 144 | P75: 93 | Q75: 98 | R75: 90 | S75: 116 | T75: 71 | U75: 61
A76: Accounts Receivables, Gross | B76: 144 | C76: 116 | D76: 107 | E76: 100 | F76: 106 | G76: 81 | H76: 62 | I76: 40 | J76: 41 | K76: 39 | L76: 96 | M76: 105 | N76: 102 | O76: 144 | P76: 93 | Q76: 98 | R76: 90 | S76: 116 | T76: 71 | U76: 61 | W76: Cash Flow (M)
A77: Bad Debt/Doubtful Accounts | B77: - | C77: - | D77: - | E77: - | F77: -2 | G77: 0 | H77: 0 | I77: 0 | J77: 0 | K77: -1 | L77: - | M77: - | N77: - | O77: - | P77: - | Q77: - | R77: - | S77: - | T77: - | U77: - | X77: Dec '25E
A78: Other Receivables | B78: 67 | C78: 53 | D78: 48 | E78: 94 | F78: 283 | G78: 28 | H78: 0 | I78: 9 | J78: 5 | K78: 58 | L78: 110 | M78: 81 | N78: 0 | O78: 67 | P78: 82 | Q78: 72 | R78: 0 | S78: 53 | T78: 0 | U78: 0 | W78: Capital Expenditures | X78: 652
A79: Inventories | B79: 49 | C79: 39 | D79: 36 | E79: 33 | F79: 26 | G79: 26 | H79: 22 | I79: 20 | J79: 15 | K79: 15 | L79: 46 | M79: 40 | N79: 41 | O79: 49 | P79: 50 | Q79: 36 | R79: 38 | S79: 39 | T79: 40 | U79: 36 | W79: Maintenance CAPEX | X79: -
A80: Finished Goods | B80: 49 | C80: 39 | D80: 36 | E80: - | F80: - | G80: - | H80: - | I80: - | J80: - | K80: - | L80: - | M80: - | N80: - | O80: 49 | P80: - | Q80: - | R80: - | S80: 39 | T80: - | U80: - | W80: Free Cash Flow | X80: 1,567
A81: Other Current Assets | B81: 98 | C81: 117 | D81: 86 | E81: 79 | F81: 55 | G81: 57 | H81: 54 | I81: 51 | J81: 44 | K81: 40 | L81: 101 | M81: 97 | N81: 104 | O81: 98 | P81: 88 | Q81: 92 | R81: 98 | S81: 117 | T81: 104 | U81: 103 | W81: Cash Flow from Operations | X81: 2,273
A82: Prepaid Expenses | B82: 80 | C82: 98 | D82: - | E82: - | F82: - | G82: - | H82: - | I82: - | J82: - | K82: - | L82: - | M82: - | N82: - | O82: 80 | P82: - | Q82: - | R82: - | S82: 98 | T82: - | U82: - | W82: Cash Flow from Investing | X82: -215
A83: Miscellaneous Current Assets | B83: 17 | C83: 20 | D83: 86 | E83: 79 | F83: 55 | G83: 57 | H83: 54 | I83: 51 | J83: 44 | K83: 40 | L83: 101 | M83: 97 | N83: 104 | O83: 17 | P83: 88 | Q83: 92 | R83: 98 | S83: 20 | T83: 104 | U83: 103 | W83: Cash Flow from Financing | X83: -2,197
A84: Total Current Assets | B84: 1,781 | C84: 1,621 | D84: 1,176 | E84: 1,382 | F84: 1,420 | G84: 1,072 | H84: 815 | I84: 630 | J84: 522 | K84: 815 | L84: 1,774 | M84: 1,869 | N84: 1,662 | O84: 1,781 | P84: 1,680 | Q84: 1,786 | R84: 1,646 | S84: 1,621 | T84: 1,669 | U84: 1,556 | W84: Share Repurchase | X84: 1,967
A85: Growth (%) | B85: 9.86 | C85: 37.83 | D85: -14.89 | E85: -2.72 | F85: 32.46 | G85: 31.59 | H85: 29.43 | I85: 20.51 | J85: -35.88 | K85: -7.27 | L85: 5.57 | M85: 4.64 | N85: 0.96 | O85: 9.86 | P85: 0.65 | Q85: 14.77 | R85: 30.47 | S85: 37.83 | T85: 54.94 | U85: 48.75
A86: Total Current Assets/Total Assets | B86: 16.94 | C86: 17.61 | D86: 14.72 | E86: 18.07 | F86: 20.63 | G86: 18.12 | H86: 33.9 | I86: 28.72 | J86: 23.53 | K86: 28.14 | L86: 19.11 | M86: 20.17 | N86: 18.37 | O86: 16.94 | P86: 18.65 | Q86: 20.03 | R86: 19.57 | S86: 17.61 | T86: 21.1 | U86: 20.61 | W86: Per Share
A87: Net Property, Plant & Equipment | B87: 6,390 | C87: 5,749 | D87: 5,254 | E87: 4,888 | F87: 4,351 | G87: 3,964 | H87: 1,379 | I87: 1,338 | J87: 1,304 | K87: 1,217 | L87: 6,979 | M87: 6,707 | N87: 6,513 | O87: 6,390 | P87: 6,275 | Q87: 6,037 | R87: 5,874 | S87: 5,749 | T87: 5,649 | U87: 5,456 | X87: Dec '25E
A88: Property, Plant & Equipment - Gross | B88: 8,640 | C88: 7,731 | D88: 6,988 | E88: 6,424 | F88: 5,731 | G88: 5,166 | H88: 2,463 | I88: 2,317 | J88: 2,149 | K88: 1,938 | L88: - | M88: - | N88: - | O88: 8,640 | P88: - | Q88: - | R88: - | S88: 7,731 | T88: - | U88: - | W88: EPS | X88: 1.16
A89: Buildings | B89: 2,918 | C89: 2,596 | D89: 2,317 | E89: 2,094 | F89: 1,921 | G89: 1,765 | H89: 1,690 | I89: 1,635 | J89: 1,573 | K89: 1,419 | L89: - | M89: - | N89: - | O89: 2,918 | P89: - | Q89: - | R89: - | S89: 2,596 | T89: - | U89: - | W89: EPS - GAAP | X89: 1.14
A90: Land & Improvements | B90: 13 | C90: 13 | D90: 13 | E90: 13 | F90: 13 | G90: 13 | H90: 13 | I90: 13 | J90: 13 | K90: 13 | L90: - | M90: - | N90: - | O90: 13 | P90: - | Q90: - | R90: - | S90: 13 | T90: - | U90: - | W90: EPS - Non GAAP | X90: 1.16
A91: Machinery & Equipment | B91: 1,221 | C91: 1,114 | D91: 990 | E91: 868 | F91: 755 | G91: 654 | H91: 544 | I91: 460 | J91: 406 | K91: 363 | L91: - | M91: - | N91: - | O91: 1,221 | P91: - | Q91: - | R91: - | S91: 1,114 | T91: - | U91: - | W91: Dividends per Share | X91: 0
A92: Construction in Progress | B92: 193 | C92: 162 | D92: 123 | E92: 107 | F92: 76 | G92: 45 | H92: 43 | I92: 42 | J92: - | K92: - | L92: - | M92: - | N92: - | O92: 193 | P92: - | Q92: - | R92: - | S92: 162 | T92: - | U92: - | W92: Free Cash Flow per Share | X92: 1.05
A93: Other Property, Plant & Equipment | B93: 294 | C93: 267 | D93: 242 | E93: 223 | F93: 198 | G93: 182 | H93: 173 | I93: 167 | J93: 158 | K93: 143 | L93: - | M93: - | N93: - | O93: 294 | P93: - | Q93: - | R93: - | S93: 267 | T93: - | U93: - | W93: Cash Flow per Share | X93: 1.52
A94: Operating Lease Right-of-Use Assets | B94: 4,000 | C94: 3,579 | D94: 3,302 | E94: 3,118 | F94: 2,767 | G94: 2,505 | H94: - | I94: - | J94: - | K94: - | L94: 4,385 | M94: 4,204 | N94: 4,076 | O94: 4,000 | P94: 3,955 | Q94: 3,771 | R94: 3,671 | S94: 3,579 | T94: 3,556 | U94: 3,434 | W94: Book Value per Share | X94: 2.44
A95: Accumulated Depreciation | B95: 2,249 | C95: 1,982 | D95: 1,735 | E95: 1,536 | F95: 1,380 | G95: 1,201 | H95: 1,084 | I95: 979 | J95: 845 | K95: 721 | L95: - | M95: - | N95: - | O95: 2,249 | P95: - | Q95: - | R95: - | S95: 1,982 | T95: - | U95: - | W95: Book Value per Share - Tangible | X95: -
A96: Total Long-Term Investments | B96: 926 | C96: 599 | D96: 425 | E96: 334 | F96: 140 | G96: 41 | H96: 30 | I96: 30 | J96: 171 | K96: 664 | L96: 407 | M96: 576 | N96: 759 | O96: 926 | P96: 950 | Q96: 1,015 | R96: 811 | S96: 599 | T96: 508 | U96: 466
A97: LT Investment - Affiliate Companies | B97: 28 | C97: 9 | D97: 12 | E97: 9 | F97: 10 | G97: 0 | H97: 0 | I97: 0 | J97: 0 | K97: 0 | L97: 29 | M97: 27 | N97: 27 | O97: 28 | P97: 29 | Q97: 15 | R97: 8 | S97: 9 | T97: 10 | U97: 10 | W97: Valuation
A98: Other Long-Term Investments | B98: 898 | C98: 590 | D98: 413 | E98: 324 | F98: 130 | G98: 41 | H98: 30 | I98: 30 | J98: 171 | K98: 664 | L98: 379 | M98: 549 | N98: 732 | O98: 898 | P98: 920 | Q98: 1,000 | R98: 803 | S98: 590 | T98: 499 | U98: 456 | X98: Dec '25E
A99: Intangible Assets | B99: 22 | C99: 22 | D99: 22 | E99: 22 | F99: 22 | G99: 22 | H99: 22 | I99: 22 | J99: 22 | K99: 22 | L99: 22 | M99: 22 | N99: 22 | O99: 22 | P99: 22 | Q99: 22 | R99: 22 | S99: 22 | T99: 22 | U99: 22 | W99: Price/Earnings (x) | X99: 27.3
A100: Goodwill | B100: 22 | C100: 22 | D100: 22 | E100: 22 | F100: 22 | G100: 22 | H100: 22 | I100: 22 | J100: 22 | K100: 22 | L100: 22 | M100: 22 | N100: 22 | O100: 22 | P100: 22 | Q100: 22 | R100: 22 | S100: 22 | T100: 22 | U100: 22 | W100: BV Growth (x) | X100: -8.1
A101: Deferred Tax Assets | B101: 1,307 | C101: 1,157 | D101: 1,063 | E101: 991 | F101: 903 | G101: 814 | H101: 138 | I101: 147 | J101: 194 | K101: 170 | L101: - | M101: - | N101: - | O101: 1,307 | P101: - | Q101: - | R101: - | S101: 1,157 | T101: - | U101: - | W101: PEG Ratio (x) | X101: 2.8
A102: Other Assets | B102: 86 | C102: 54 | D102: 51 | E102: 28 | F102: 50 | G102: 6 | H102: 19 | I102: 26 | J102: 7 | K102: 7 | L102: 100 | M102: 94 | N102: 89 | O102: 86 | P102: 85 | Q102: 60 | R102: 58 | S102: 54 | T102: 63 | U102: 52 | W102: PEG Ratio(Operating) (x) | X102: 833
A103: Tangible Other Assets | B103: 86 | C103: 54 | D103: 51 | E103: 28 | F103: 50 | G103: 6 | H103: 19 | I103: 26 | J103: 7 | K103: 7 | L103: 100 | M103: 94 | N103: 89 | O103: 86 | P103: 85 | Q103: 60 | R103: 58 | S103: 54 | T103: 63 | U103: 52 | W103: PEG Ratio(Net Income) (x) | X103: 833
A104: Total Assets | B104: 10,512 | C104: 9,202 | D104: 7,990 | E104: 7,644 | F104: 6,886 | G104: 5,918 | H104: 2,404 | I104: 2,192 | J104: 2,220 | K104: 2,895 | L104: 9,282 | M104: 9,269 | N104: 9,044 | O104: 10,512 | P104: 9,012 | Q104: 8,920 | R104: 8,411 | S104: 9,202 | T104: 7,911 | U104: 7,552 | W104: Price/Operating Cash Flow (x) | X104: 0
A105: Growth (%) | B105: 14.23 | C105: 15.16 | D105: 4.53 | E105: 11.01 | F105: 16.35 | G105: 146.22 | H105: 9.64 | I105: -1.23 | J105: -23.32 | K105: 7.79 | L105: 3 | M105: 3.91 | N105: 7.52 | O105: 14.23 | P105: 13.91 | Q105: 18.11 | R105: 19.25 | S105: 15.16 | T105: 16.05 | U105: 15.39 | W105: Price/Book Value (x) | X105: 12.9
A106: Liabilities & Shareholders' Equity | W106: Price/Cash Flow (x) | X106: 20.9
A107: Current | W107: Price/Free Cash Flow (x) | X107: 30
A108: ST Debt & Curr. Portion LT Debt | B108: 277.8 | C108: 248.1 | D108: 236.2 | E108: 218.7 | F108: 204.8 | G108: 173.6 | H108: 0 | I108: 0 | J108: 0 | K108: 0 | L108: 293 | M108: 287.3 | N108: 284.5 | O108: 277.8 | P108: 270.6 | Q108: 264.3 | R108: 254.1 | S108: 248.1 | T108: 245 | U108: 244.1 | W108: Price/Sales (x) | X108: 3.5
A109: Accounts Payable | B109: 210.7 | C109: 197.6 | D109: 184.6 | E109: 163.2 | F109: 122 | G109: 115.8 | H109: 113.1 | I109: 82 | J109: 78.4 | K109: 85.7 | L109: 260.2 | M109: 216.3 | N109: 217.4 | O109: 210.7 | P109: 221.3 | Q109: 203.5 | R109: 196.9 | S109: 197.6 | T109: 207.5 | U109: 162 | W109: Enterprise Value/Sales (x) | X109: 3.9
A110: Income Tax Payable | B110: 47.2 | C110: 42.1 | D110: 35.6 | E110: 32 | F110: 26.4 | G110: 26.5 | H110: 26.9 | I110: 18.9 | J110: 20.4 | K110: 15.6 | L110: - | M110: - | N110: 46.1 | O110: 47.2 | P110: - | Q110: - | R110: 45 | S110: 42.1 | T110: 172.7 | U110: 98.4 | W110: Enterprise Value/EBITDA (x) | X110: 19.8
A111: Other Current Liabilities | B111: 633 | C111: 542.8 | D111: 465.5 | E111: 459.8 | F111: 469 | G111: 350.7 | H111: 310 | I111: 222.9 | J111: 183 | K111: 178.6 | L111: 596.8 | M111: 628.7 | N111: 543.5 | O111: 633 | P111: 546 | Q111: 575.4 | R111: 501.4 | S111: 542.8 | T111: 462.5 | U111: 477.7 | W111: Enterprise Value/EBIT (x) | X111: 23.5
A112: Accrued Payroll | B112: 261.9 | C112: 227.5 | D112: 170.5 | E112: 162.4 | F112: 203.1 | G112: 126.6 | H112: 113.5 | I112: 82.5 | J112: 76.3 | K112: 65 | L112: 193.2 | M112: 236.9 | N112: 154.4 | O112: 261.9 | P112: 184.4 | Q112: 223.4 | R112: 142.4 | S112: 227.5 | T112: 147.6 | U112: 170.8 | W112: Enterprise Value/FCF (x) | X112: 29.3
A113: Miscellaneous Current Liabilities | B113: 371.1 | C113: 315.3 | D113: 295 | E113: 297.4 | F113: 266 | G113: 224.1 | H113: 196.6 | I113: 140.4 | J113: 106.7 | K113: 113.6 | L113: 403.7 | M113: 391.7 | N113: 389.1 | O113: 371.1 | P113: 361.6 | Q113: 352 | R113: 358.9 | S113: 315.3 | T113: 314.9 | U113: 306.9 | W113: Dividend Yield (%) | X113: 0
A114: Total Current Liabilities | B114: 1,168.80 | C114: 1,030.60 | D114: 921.9 | E114: 873.7 | F114: 822.2 | G114: 666.6 | H114: 450 | I114: 323.9 | J114: 281.8 | K114: 279.9 | L114: 1,150.10 | M114: 1,132.30 | N114: 1,091.50 | O114: 1,168.80 | P114: 1,037.90 | Q114: 1,043.20 | R114: 997.4 | S114: 1,030.60 | T114: 1,087.70 | U114: 982.3 | W114: Sales/Share (x) | X114: 9
A115: Growth (%) | B115: 13.4 | C115: 11.8 | D115: 5.52 | E115: 6.26 | F115: 23.34 | G115: 48.14 | H115: 38.93 | I115: 14.94 | J115: 0.66 | K115: 13.93 | L115: 10.81 | M115: 8.54 | N115: 9.44 | O115: 13.4 | P115: -4.58 | Q115: 6.2 | R115: 11.55 | S115: 11.8 | T115: 32.99 | U115: 18.11 | W115: Return on Assets (ROA) (%) | X115: 16.7
A116: Total Current Liabilities/Total Assets | B116: 11.12 | C116: 11.2 | D116: 11.54 | E116: 11.43 | F116: 11.94 | G116: 11.26 | H116: 18.72 | I116: 14.77 | J116: 12.7 | K116: 9.67 | L116: 12.39 | M116: 12.22 | N116: 12.07 | O116: 11.12 | P116: 11.52 | Q116: 11.69 | R116: 11.86 | S116: 11.2 | T116: 13.75 | U116: 13.01 | W116: Return on Equity (ROE) (%) | X116: 47.3
A117: Long-Term | W117: Operating Return on Assets (%) | X117: 0.2
A118: Long-Term Debt | B118: 4,263 | C118: 3,804 | D118: 3,495 | E118: 3,302 | F118: 2,952 | G118: 2,681 | H118: 0 | I118: 0 | J118: 0 | K118: 0 | L118: 4,687 | M118: 4,493 | N118: 4,349 | O118: 4,263 | P118: 4,213 | Q118: 4,014 | R118: 3,903 | S118: 3,804 | T118: 3,773 | U118: 3,644 | W118: Operating Return on Shareholder's Equity (%) | X118: 0.6
A119: Capital and Operating Lease Obligations | B119: 4,263 | C119: 3,804 | D119: 3,495 | E119: 3,302 | F119: 2,952 | G119: 2,681 | H119: 0 | I119: 0 | J119: 0 | K119: 0 | L119: 4,687 | M119: 4,493 | N119: 4,349 | O119: 4,263 | P119: 4,213 | Q119: 4,014 | R119: 3,903 | S119: 3,804 | T119: 3,773 | U119: 3,644 | W119: Return on Average Assets (%) | X119: 16.8
A120: Deferred Tax Liabilities | B120: 1,353 | C120: 1,247 | D120: 1,162 | E120: 1,133 | F120: 1,052 | G120: 851 | H120: 150 | I120: 147 | J120: 213 | K120: 202 | L120: 140 | M120: 36 | N120: 39 | O120: 1,353 | P120: 80 | Q120: 83 | R120: 84 | S120: 1,247 | T120: 111 | U120: 106 | W120: Net Income Return on SH Equity (%) | X120: 0.5
A121: Other Liabilities | B121: 71 | C121: 59 | D121: 44 | E121: 39 | F121: 39 | G121: 37 | H121: 363 | I121: 357 | J121: 323 | K121: 285 | L121: 82 | M121: 79 | N121: 74 | O121: 71 | P121: 68 | Q121: 67 | R121: 65 | S121: 59 | T121: 53 | U121: 53 | W121: Valuation data as of 21 Nov '25
A122: Other Liabilities (excl. Deferred Income) | B122: 71 | C122: 59 | D122: 44 | E122: 39 | F122: 39 | G122: 37 | H122: 363 | I122: 357 | J122: 323 | K122: 285 | L122: 82 | M122: 79 | N122: 74 | O122: 71 | P122: 68 | Q122: 67 | R122: 65 | S122: 59 | T122: 53 | U122: 53 | W122: Enterprise Value from Factset Fundamentals
A123: Total Liabilities | B123: 6,856 | C123: 6,140 | D123: 5,622 | E123: 5,347 | F123: 4,866 | G123: 4,235 | H123: 962 | I123: 828 | J123: 817 | K123: 767 | L123: 6,060 | M123: 5,741 | N123: 5,553 | O123: 6,856 | P123: 5,398 | Q123: 5,208 | R123: 5,050 | S123: 6,140 | T123: 5,025 | U123: 4,786
A124: Growth (%) | B124: 11.67 | C124: 9.2 | D124: 5.16 | E124: 9.88 | F124: 14.89 | G124: 340.11 | H124: 16.24 | I124: 1.31 | J124: 6.55 | K124: 13.89 | L124: 12.27 | M124: 10.23 | N124: 9.97 | O124: 11.67 | P124: 7.41 | Q124: 8.83 | R124: 10.46 | S124: 9.2 | T124: 11.92 | U124: 8.98
A125: Total Liabilities/Total Assets | B125: 65.22 | C125: 66.72 | D125: 70.36 | E125: 69.95 | F125: 70.66 | G125: 71.56 | H125: 40.04 | I125: 37.76 | J125: 36.82 | K125: 26.49 | L125: 65.29 | M125: 61.93 | N125: 61.4 | O125: 65.22 | P125: 59.9 | Q125: 58.39 | R125: 60.04 | S125: 66.72 | T125: 63.52 | U125: 63.36
A126: Equity
A127: Common Equity | B127: 3,656 | C127: 3,062 | D127: 2,368 | E127: 2,297 | F127: 2,020 | G127: 1,683 | H127: 1,441 | I127: 1,364 | J127: 1,402 | K127: 2,128 | L127: 3,222 | M127: 3,528 | N127: 3,491 | O127: 3,656 | P127: 3,614 | Q127: 3,712 | R127: 3,361 | S127: 3,062 | T127: 2,886 | U127: 2,767
A128: Common Stock Par/Carry Value | B128: 14 | C128: 0 | D128: 0 | E128: 0 | F128: 0 | G128: 0 | H128: 0 | I128: 0 | J128: 0 | K128: 0 | L128: 13 | M128: 13 | N128: 13 | O128: 14 | P128: 14 | Q128: 14 | R128: 0 | S128: 0 | T128: 0 | U128: 0
A129: Additional Paid-In Capital/Capital Surplus | B129: 2,078 | C129: 1,956 | D129: 1,829 | E129: 1,729 | F129: 1,550 | G129: 1,466 | H129: 1,374 | I129: 1,305 | J129: 1,239 | K129: 1,173 | L129: 2,178 | M129: 2,157 | N129: 2,118 | O129: 2,078 | P129: 2,030 | Q129: 2,024 | R129: 1,995 | S129: 1,956 | T129: 1,918 | U129: 1,881
A130: Retained Earnings | B130: 1,574 | C130: 6,057 | D130: 4,828 | E130: 3,929 | F130: 3,276 | G130: 2,921 | H130: 2,574 | I130: 2,397 | J130: 2,221 | K130: 2,198 | L130: 1,039 | M130: 1,365 | N130: 1,369 | O130: 1,574 | P130: 1,578 | Q130: 1,683 | R130: 6,416 | S130: 6,057 | T130: 5,775 | U130: 5,462
A131: Cumulative Translation Adjustment/Unrealized For. Exch. Gain | B131: -10 | C131: -7 | D131: -8 | E131: -5 | F131: -4 | G131: -5 | H131: -6 | I131: -3 | J131: -8 | K131: -8 | L131: -8 | M131: -7 | N131: -10 | O131: -10 | P131: -7 | Q131: -9 | R131: -8 | S131: -7 | T131: -8 | U131: -7
A132: Unrealized Gain/Loss Marketable Securities | B132: 0 | C132: 0 | D132: 0 | E132: 0 | F132: 0 | G132: 0 | H132: 0 | I132: 0 | J132: 0 | K132: 0 | L132: 0 | M132: 0 | N132: 0 | O132: 0 | P132: 0 | Q132: 0 | R132: 0 | S132: 0 | T132: 0 | U132: 0
A133: Treasury Stock | B133: 0 | C133: -4,945 | D133: -4,282 | E133: -3,356 | F133: -2,802 | G133: -2,699 | H133: -2,501 | I133: -2,334 | J133: -2,049 | K133: -1,235 | L133: 0 | M133: 0 | N133: 0 | O133: 0 | P133: 0 | Q133: 0 | R133: -5,042 | S133: -4,945 | T133: -4,799 | U133: -4,569
A134: Total Shareholders' Equity | B134: 3,656 | C134: 3,062 | D134: 2,368 | E134: 2,297 | F134: 2,020 | G134: 1,683 | H134: 1,441 | I134: 1,364 | J134: 1,402 | K134: 2,128 | L134: 3,222 | M134: 3,528 | N134: 3,491 | O134: 3,656 | P134: 3,614 | Q134: 3,712 | R134: 3,361 | S134: 3,062 | T134: 2,886 | U134: 2,767
A135: Growth (%) | B135: 19.38 | C135: 29.31 | D135: 3.08 | E135: 13.72 | F135: 20.03 | G135: 16.77 | H135: 5.64 | I135: -2.71 | J135: -34.09 | K135: 5.74 | L135: -10.85 | M135: -4.95 | N135: 3.85 | O135: 19.38 | P135: 25.21 | Q135: 34.15 | R135: 35.45 | S135: 29.31 | T135: 24.02 | U135: 28.44
A136: Total Shareholders' Equity/Total Assets | B136: 34.78 | C136: 33.28 | D136: 29.64 | E136: 30.05 | F136: 29.34 | G136: 28.44 | H136: 59.96 | I136: 62.24 | J136: 63.18 | K136: 73.51 | L136: 34.71 | M136: 38.07 | N136: 38.6 | O136: 34.78 | P136: 40.1 | Q136: 41.61 | R136: 39.96 | S136: 33.28 | T136: 36.48 | U136: 36.64
A137: Total Equity | B137: 3,656 | C137: 3,062 | D137: 2,368 | E137: 2,297 | F137: 2,020 | G137: 1,683 | H137: 1,441 | I137: 1,364 | J137: 1,402 | K137: 2,128 | L137: 3,222 | M137: 3,528 | N137: 3,491 | O137: 3,656 | P137: 3,614 | Q137: 3,712 | R137: 3,361 | S137: 3,062 | T137: 2,886 | U137: 2,767
A138: Growth (%) | B138: 19.38 | C138: 29.31 | D138: 3.08 | E138: 13.72 | F138: 20.03 | G138: 16.77 | H138: 5.64 | I138: -2.71 | J138: -34.09 | K138: 5.74 | L138: -10.85 | M138: -4.95 | N138: 3.85 | O138: 19.38 | P138: 25.21 | Q138: 34.15 | R138: 35.45 | S138: 29.31 | T138: 24.02 | U138: 28.44
A139: Total Equity/Total Assets | B139: 34.78 | C139: 33.28 | D139: 29.64 | E139: 30.05 | F139: 29.34 | G139: 28.44 | H139: 59.96 | I139: 62.24 | J139: 63.18 | K139: 73.51 | L139: 34.71 | M139: 38.07 | N139: 38.6 | O139: 34.78 | P139: 40.1 | Q139: 41.61 | R139: 39.96 | S139: 33.28 | T139: 36.48 | U139: 36.64
A140: Total Liabilities & Shareholders' Equity | B140: 10,512 | C140: 9,202 | D140: 7,990 | E140: 7,644 | F140: 6,886 | G140: 5,918 | H140: 2,404 | I140: 2,192 | J140: 2,220 | K140: 2,895 | L140: 9,282 | M140: 9,269 | N140: 9,044 | O140: 10,512 | P140: 9,012 | Q140: 8,920 | R140: 8,411 | S140: 9,202 | T140: 7,911 | U140: 7,552
A141: Growth (%) | B141: 14.23 | C141: 15.16 | D141: 4.53 | E141: 11.01 | F141: 16.35 | G141: 146.22 | H141: 9.64 | I141: -1.23 | J141: -23.32 | K141: 7.79 | L141: 3 | M141: 3.91 | N141: 7.52 | O141: 14.23 | P141: 13.91 | Q141: 18.11 | R141: 19.25 | S141: 15.16 | T141: 16.05 | U141: 15.39
A142: Total Liabilities & Shareholders' Equity/Total Assets | B142: 100 | C142: 100 | D142: 100 | E142: 100 | F142: 100 | G142: 100 | H142: 100 | I142: 100 | J142: 100 | K142: 100 | L142: 100 | M142: 100 | N142: 100 | O142: 100 | P142: 100 | Q142: 100 | R142: 100 | S142: 100 | T142: 100 | U142: 100
A143: Per Share
A144: Book Value per Share | B144: 2.69 | C144: 2.23 | D144: 1.71 | E144: 1.64 | F144: 1.44 | G144: 1.21 | H144: 1.04 | I144: 0.97 | J144: 0.97 | K144: 1.39 | L144: 2.43 | M144: 2.63 | N144: 2.59 | O144: 2.69 | P144: 2.65 | Q144: 2.71 | R144: 2.45 | S144: 2.23 | T144: 2.1 | U144: 2.01
A145: Tangible Book Value per Share | B145: 2.67 | C145: 2.22 | D145: 1.7 | E145: 1.62 | F145: 1.43 | G145: 1.2 | H145: 1.02 | I145: 0.96 | J145: 0.96 | K145: 1.38 | L145: 2.41 | M145: 2.61 | N145: 2.57 | O145: 2.67 | P145: 2.63 | Q145: 2.69 | R145: 2.43 | S145: 2.22 | T145: 2.08 | U145: 1.99
A146: Supplemental
A147: Working Capital | B147: 612 | C147: 590 | D147: 254 | E147: 508 | F147: 598 | G147: 406 | H147: 365 | I147: 306 | J147: 241 | K147: 535 | L147: 624 | M147: 737 | N147: 570 | O147: 612 | P147: 642 | Q147: 743 | R147: 648 | S147: 590 | T147: 582 | U147: 574
A148: Total Capital | B148: 8,196 | C148: 7,114 | D148: 6,099 | E148: 5,818 | F148: 5,177 | G148: 4,537 | H148: 1,441 | I148: 1,364 | J148: 1,402 | K148: 2,128 | L148: 8,202 | M148: 8,309 | N148: 8,124 | O148: 8,196 | P148: 8,097 | Q148: 7,991 | R148: 7,519 | S148: 7,114 | T148: 6,904 | U148: 6,655
A149: Total Debt | B149: 4,541 | C149: 4,052 | D149: 3,731 | E149: 3,520 | F149: 3,157 | G149: 2,854 | H149: 0 | I149: 0 | J149: 0 | K149: 0 | L149: 4,980 | M149: 4,781 | N149: 4,633 | O149: 4,541 | P149: 4,483 | Q149: 4,279 | R149: 4,157 | S149: 4,052 | T149: 4,018 | U149: 3,888
A150: Net Debt | B150: 3,118 | C150: 2,756 | D150: 2,832 | E150: 2,444 | F150: 2,205 | G150: 1,973 | H150: -677 | I150: -509 | J150: -418 | K150: -663 | L150: 3,559 | M150: 3,234 | N150: 3,218 | O150: 3,118 | P150: 3,116 | Q150: 2,789 | R150: 2,738 | S150: 2,756 | T150: 2,564 | U150: 2,532
A151: Efficiency
A152: Days of Inventory on Hand | B152: 1.87 | C152: 1.8 | D152: 1.82 | E152: 1.77 | F152: 1.85 | G152: 1.87 | H152: 1.82 | I152: 1.64 | J152: 1.54 | K152: 1.6 | L152: 1.93 | M152: 1.55 | N152: 1.65 | O152: 1.87 | P152: 1.96 | Q152: 1.61 | R152: 1.7 | S152: 1.8 | T152: 1.83 | U152: 1.66
A153: Days of Sales Outstanding | B153: 6.12 | C153: 5.97 | D153: 7.36 | E153: 14.05 | F153: 15.11 | G153: 5.57 | H153: 4.21 | I153: 3.89 | J153: 6.64 | K153: 5.99 | L153: 5.9 | M153: 5.59 | N153: 3.04 | O153: 6.12 | P153: 4.09 | Q153: 3.94 | R153: 2.78 | S153: 5.97 | T153: 4.87 | U153: 4.77
A154: Days of Payables Outstanding | B154: 8.62 | C154: 9.17 | D154: 9.25 | E154: 8.53 | F154: 8.37 | G154: 8.96 | H154: 8.56 | I154: 7.53 | J154: 8.43 | K154: 8.2 | L154: 9.65 | M154: 8.59 | N154: 8.59 | O154: 8.62 | P154: 9.34 | Q154: 8.23 | R154: 8.86 | S154: 9.17 | T154: 9.28 | U154: 8.12
A155: Stock Option Comp
A156: Stock Option Comp Exp (Net of Tax) | B156: 110 | C156: 107.21 | D156: 84.93 | E156: 159.97 | F156: 69.9 | G156: 73.87 | H156: 51.54 | I156: 40.37 | J156: 35.97 | K156: 36.67 | L156: 15.38 | M156: 31.73 | N156: 31.81 | O156: 32.26 | P156: -1.06 | Q156: 38.93 | R156: 31.29 | S156: 25.47 | T156: 31.07 | U156: 27.21
A157: Non-Qualified Option/Warrant Awards
A158: Operating Lease Commitments | B158: 6,558 | C158: 5,743 | D158: 5,161 | E158: 4,776 | F158: 4,316 | G158: 3,950 | H158: 3,950 | I158: - | J158: 3,683 | K158: 3,468 | L158: - | M158: - | N158: - | O158: - | P158: - | Q158: - | R158: - | S158: - | T158: - | U158: -
A159: Year 1 | B159: 465 | C159: 413 | D159: 375 | E159: 347 | F159: 319 | G159: 294 | H159: 294 | I159: - | J159: 265 | K159: 240 | L159: - | M159: - | N159: - | O159: - | P159: - | Q159: - | R159: - | S159: - | T159: - | U159: -
A160: Year 2 | B160: 507 | C160: 450 | D160: 404 | E160: 377 | F160: 345 | G160: 297 | H160: 297 | I160: - | J160: 269 | K160: 241 | L160: - | M160: - | N160: - | O160: - | P160: - | Q160: - | R160: - | S160: - | T160: - | U160: -
A161: Year 3 | B161: 499 | C161: 444 | D161: 397 | E161: 368 | F161: 340 | G161: 295 | H161: 295 | I161: - | J161: 269 | K161: 245 | L161: - | M161: - | N161: - | O161: - | P161: - | Q161: - | R161: - | S161: - | T161: - | U161: -
A162: Year 4 | B162: 484 | C162: 437 | D162: 389 | E162: 360 | F162: 330 | G162: 295 | H162: 295 | I162: - | J162: 264 | K162: 245 | L162: - | M162: - | N162: - | O162: - | P162: - | Q162: - | R162: - | S162: - | T162: - | U162: -
A163: Year 5 | B163: 468 | C163: 423 | D163: 383 | E163: 351 | F163: 321 | G163: 291 | H163: 291 | I163: - | J163: 257 | K163: 240 | L163: - | M163: - | N163: - | O163: - | P163: - | Q163: - | R163: - | S163: - | T163: - | U163: -
A164: Over 5 Years | B164: 4,134 | C164: 3,577 | D164: 3,213 | E164: 2,973 | F164: 2,660 | G164: 2,478 | H164: 2,478 | I164: - | J164: 2,359 | K164: 2,257 | L164: - | M164: - | N164: - | O164: - | P164: - | Q164: - | R164: - | S164: - | T164: - | U164: -
A165: Long Term Debt Maturities | B165: 4,263 | C165: 3,804 | D165: 3,495 | E165: 3,302 | F165: 2,952 | G165: 2,681 | H165: 0 | I165: 0 | J165: 0 | K165: 0 | L165: 4,687 | M165: 4,493 | N165: 4,349 | O165: 4,263 | P165: 4,213 | Q165: 4,014 | R165: 3,903 | S165: 3,804 | T165: 3,773 | U165: 3,644
A167: Cash Flow
A168: GAAP/IFRS Cash Flow
A169: Operating Activities
A170: Net Income / Starting Line | B170: 1,534.10 | C170: 1,228.70 | D170: 899.1 | E170: 653 | F170: 355.8 | G170: 350.2 | H170: 176.6 | I170: 176.3 | J170: 22.9 | K170: 475.6 | L170: 382.1 | M170: 436.1 | N170: 386.6 | O170: 331.8 | P170: 387.4 | Q170: 455.7 | R170: 359.3 | S170: 282.1 | T170: 313.2 | U170: 341.8
A171: Depreciation, Depletion & Amortization | B171: 335 | C171: 319.4 | D171: 286.8 | E171: 254.7 | F171: 423.1 | G171: 376.7 | H171: 202 | I171: 163.3 | J171: 146.4 | K171: 130.4 | L171: 90.5 | M171: 90.9 | N171: 87.2 | O171: 83.9 | P171: 84.3 | Q171: 83.6 | R171: 83.2 | S171: 85.5 | T171: 78.5 | U171: 78.8
A172: Depreciation and Depletion | B172: 335 | C172: 319.4 | D172: 286.8 | E172: 254.7 | F172: 423.1 | G172: 376.7 | H172: 202 | I172: 163.3 | J172: 146.4 | K172: 130.4 | L172: 90.5 | M172: 90.9 | N172: 87.2 | O172: 83.9 | P172: 84.3 | Q172: 83.6 | R172: 83.2 | S172: 85.5 | T172: 78.5 | U172: 78.8
A173: Deferred Taxes & Investment Tax Credit | B173: -42.9 | C173: -9.5 | D173: -43.2 | E173: -12.4 | F173: 108.4 | G173: 30 | H173: 10.6 | I173: -18 | J173: -14.2 | K173: 11.7 | L173: 104.2 | M173: -2.6 | N173: -7.3 | O173: -33.3 | P173: -3.8 | Q173: -0.9 | R173: -4.9 | S173: -22 | T173: 4.6 | U173: 8.3
A174: Deferred Taxes | B174: -42.9 | C174: -9.5 | D174: -43.2 | E174: -12.4 | F174: 108.4 | G174: 30 | H174: 10.6 | I174: -18 | J174: -14.2 | K174: 11.7 | L174: 104.2 | M174: -2.6 | N174: -7.3 | O174: -33.3 | P174: -3.8 | Q174: -0.9 | R174: -4.9 | S174: -22 | T174: 4.6 | U174: 8.3
A175: Other Funds | B175: 153.1 | C175: 149.5 | D175: 101.8 | E175: 189.4 | F175: 115.3 | G175: 96.2 | H175: 128.4 | I175: 78.6 | J175: 85.9 | K175: -2.8 | L175: 25.6 | M175: 49.3 | N175: 43.2 | O175: 40.8 | P175: 16.7 | Q175: 54.9 | R175: 40.6 | S175: 49.1 | T175: 34.4 | U175: 40.1
A176: Funds from Operations | B176: 1,979.30 | C176: 1,688.20 | D176: 1,244.50 | E176: 1,084.70 | F176: 1,002.50 | G176: 853.1 | H176: 517.5 | I176: 400.2 | J176: 241 | K176: 614.9 | L176: 602.4 | M176: 573.9 | N176: 509.7 | O176: 423.1 | P176: 484.7 | Q176: 593.2 | R176: 478.3 | S176: 394.8 | T176: 430.8 | U176: 469
A177: Changes in Working Capital | B177: 125.8 | C177: 95.3 | D177: 78.6 | E177: 197.4 | F177: -338.6 | G177: -131.5 | H177: 104.1 | I177: 68 | J177: 108.3 | K177: 68.5 | L177: -32.7 | M177: -12.5 | N177: 47.4 | O177: 103.6 | P177: -38.2 | Q177: -30.6 | R177: 91 | S177: -129.3 | T177: 49.7 | U177: 113.6
A178: Receivables | B178: -29.3 | C178: -11.2 | D178: -14 | E178: -1.7 | F178: 3 | G178: -2.6 | H178: -8.3 | I178: -0.1 | J178: -1.9 | K178: -3.5 | L178: 10 | M178: -3.3 | N178: 43.2 | O178: -51.3 | P178: 3.7 | Q178: -7.8 | R178: 26.1 | S178: -44.9 | T178: -10.4 | U178: 4.4
A179: Inventories | B179: -9.8 | C179: -3.6 | D179: -3 | E179: -6.4 | F179: -0.4 | G179: -4.5 | H179: -1.7 | I179: -5.3 | J179: -0.1 | K179: 0.3 | L179: -6.1 | M179: 1 | N179: 7.5 | O179: 0.7 | P179: -14.3 | Q179: 2.4 | R179: 1.3 | S179: 0.9 | T179: -4.2 | U179: -1.4
A180: Accounts Payable | B180: 8.5 | C180: 5.3 | D180: 18.2 | E180: 21.4 | F180: -3.9 | G180: -1 | H180: 32.1 | I180: 10.9 | J180: -6.7 | K180: 19.5 | L180: 16.9 | M180: -0.8 | N180: 13.2 | O180: -13.8 | P180: 14.5 | Q180: -4.8 | R180: 12.6 | S180: 0.4 | T180: 15.7 | U180: -8.1
A181: Other Accruals | B181: 62.1 | C181: 60.2 | D181: -18.1 | E181: -33.6 | F181: 82.3 | G181: 48.3 | H181: 51.2 | I181: 38.6 | J181: 70.5 | K181: 25.5 | L181: -36 | M181: 84.6 | N181: -107.2 | O181: 81.4 | P181: -31.9 | Q181: 72.6 | R181: -60 | S181: 73.3 | T181: -20.6 | U181: 44
A182: Other Assets/Liabilities | B182: 94.3 | C182: 44.6 | D182: 95.6 | E182: 217.6 | F182: -419.7 | G182: -171.6 | H182: 30.8 | I182: 24 | J182: 46.5 | K182: 26.7 | L182: -17.6 | M182: -94 | N182: 90.6 | O182: 86.6 | P182: -10.2 | Q182: -93 | R182: 110.9 | S182: -159 | T182: 69.1 | U182: 74.7
A183: Net Operating Cash Flow | B183: 2,105.10 | C183: 1,783.50 | D183: 1,323.20 | E183: 1,282.10 | F183: 663.8 | G183: 721.6 | H183: 621.6 | I183: 468.2 | J183: 349.2 | K183: 683.3 | L183: 569.7 | M183: 561.3 | N183: 557.1 | O183: 526.8 | P183: 446.5 | Q183: 562.6 | R183: 569.2 | S183: 265.5 | T183: 480.5 | U183: 582.5
A184: Growth (%) | B184: 18.03 | C184: 34.79 | D184: 3.21 | E184: 93.13 | F184: -8.01 | G184: 16.1 | H184: 32.75 | I184: 34.07 | J184: -48.89 | K184: 0.18 | L184: 27.59 | M184: -0.22 | N184: -2.14 | O184: 98.44 | P184: -7.07 | Q184: -3.42 | R184: 25.1 | S184: -33.9 | T184: 36.53 | U184: 103.12
A185: Investing Activities
A186: Capital Expenditures | B186: -593.6 | C186: -560.7 | D186: -479.2 | E186: -442.5 | F186: -373.4 | G186: -333.9 | H186: -287.4 | I186: -216.8 | J186: -258.8 | K186: -257.4 | L186: -163.5 | M186: -160.6 | N186: -144.8 | O186: -172.9 | P186: -147.5 | Q186: -140.5 | R186: -132.7 | S186: -171.9 | T186: -131.2 | U186: -137.2
A187: Capital Expenditures (Fixed Assets) | B187: -593.6 | C187: -560.7 | D187: -479.2 | E187: -442.5 | F187: -373.4 | G187: -333.9 | H187: -287.4 | I187: -216.8 | J187: -258.8 | K187: -257.4 | L187: -163.5 | M187: -160.6 | N187: -144.8 | O187: -172.9 | P187: -147.5 | Q187: -140.5 | R187: -132.7 | S187: -171.9 | T187: -131.2 | U187: -137.2
A188: Sale of Fixed Assets & Businesses | B188: 20.1 | C188: 0 | D188: 0 | E188: 4 | F188: 0 | G188: 0 | H188: - | I188: - | J188: - | K188: - | L188: 0 | M188: 0 | N188: 0 | O188: 20.1 | P188: 0 | Q188: 0 | R188: 0 | S188: 0 | T188: 0 | U188: 0
A189: Purchase/Sale of Investments | B189: -264 | C189: -385.3 | D189: -350.9 | E189: -83.6 | F189: -59.4 | G189: 41.9 | H189: -100.2 | I189: 130.2 | J189: 585.6 | K189: -206.7 | L189: 148.1 | M189: 162.6 | N189: 150.9 | O189: 16.7 | P189: 83.3 | Q189: -195.7 | R189: -168.3 | S189: 19.9 | T189: -35.1 | U189: -254.9
A190: Purchase of Investments | B190: 986.7 | C190: 1,115.10 | D190: 614.4 | E190: 429.4 | F190: 478.4 | G190: 448.8 | H190: 485.2 | I190: 199.8 | J190: 0 | K190: 559.4 | L190: 9.2 | M190: 2.5 | N190: 4 | O190: 157.8 | P190: 90.4 | Q190: 371.6 | R190: 366.8 | S190: 269.2 | T190: 255.3 | U190: 375.8
A191: Sale/Maturity of Investments | B191: 722.6 | C191: 729.9 | D191: 263.5 | E191: 345.7 | F191: 419.1 | G191: 490.7 | H191: 385 | I191: 330 | J191: 585.6 | K191: 352.7 | L191: 157.3 | M191: 165.1 | N191: 154.9 | O191: 174.6 | P191: 173.7 | Q191: 175.9 | R191: 198.5 | S191: 289.1 | T191: 220.2 | U191: 120.9
A192: Net Investing Cash Flow | B192: -837.5 | C192: -946 | D192: -830 | E192: -522 | F192: -432.7 | G192: -292 | H192: -387.6 | I192: -86.6 | J192: 326.8 | K192: -464.1 | L192: -15.4 | M192: 2 | N192: 6.1 | O192: -136 | P192: -64.2 | Q192: -336.2 | R192: -301 | S192: -152 | T192: -166.3 | U192: -392.1
A193: Growth (%) | B193: 11.47 | C193: -13.97 | D193: -59 | E193: -20.64 | F193: -48.2 | G193: 24.67 | H193: -347.66 | I193: -126.49 | J193: - | K193: 10.54 | L193: 76.02 | M193: - | N193: - | O193: 10.51 | P193: 61.37 | Q193: 14.26 | R193: -27.8 | S193: 17.25 | T193: 58.12 | U193: -237.67
A194: Financing Activities
A195: Change in Capital Stock | B195: -1,001.60 | C195: -661.5 | D195: -929.1 | E195: -546.3 | F195: -103 | G195: -201 | H195: -160.9 | I195: -285.2 | J195: -837.7 | K195: -460.7 | L195: -686.7 | M195: -443.3 | N195: -553.8 | O195: -339 | P195: -490.2 | Q195: -145.4 | R195: -27 | S195: -224.2 | T195: -215.6 | U195: -95
A196: Repurchase of Common & Preferred Stk. | B196: -1,001.60 | C196: -592.3 | D196: -830.1 | E196: -466.5 | F196: -54.4 | G196: -190.6 | H196: -160.9 | I196: -285.2 | J196: -837.7 | K196: -460.7 | L196: -686.7 | M196: -443.3 | N196: -553.8 | O196: -339 | P196: -490.2 | Q196: -145.4 | R196: -27 | S196: -155 | T196: -215.6 | U196: -95
A197: Sale of Common & Preferred Stock | B197: 0 | C197: -69.1 | D197: -99 | E197: -79.9 | F197: -48.6 | G197: -10.4 | H197: 0 | I197: 0 | J197: 0 | K197: 0 | L197: 0 | M197: 0 | N197: 0 | O197: 0 | P197: 0 | Q197: 0 | R197: 0 | S197: -69.1 | T197: 0 | U197: 0
A198: Proceeds from Sale of Stock | B198: 0 | C198: -69.1 | D198: -99 | E198: -79.9 | F198: -48.6 | G198: -10.4 | H198: 0 | I198: 0 | J198: 0 | K198: 0 | L198: 0 | M198: 0 | N198: 0 | O198: 0 | P198: 0 | Q198: 0 | R198: 0 | S198: -69.1 | T198: 0 | U198: 0
A199: Other Funds | B199: -72.1 | C199: 0.8 | D199: -0.3 | E199: -2.3 | F199: -1.9 | G199: -0.7 | H199: -5.6 | I199: -0.7 | J199: 1.4 | K199: 74.2 | L199: -13.8 | M199: -0.4 | N199: -31.4 | O199: 0.2 | P199: 0.7 | Q199: 0 | R199: -73.1 | S199: 68.9 | T199: -0.7 | U199: -0.2
A200: Other Uses | B200: -74.2 | C200: 0 | D200: -0.3 | E200: -2.3 | F200: -1.9 | G200: -0.7 | H200: -5.6 | I200: -0.7 | J200: 0 | K200: -0.2 | L200: -15.2 | M200: -0.4 | N200: -32.9 | O200: -0.9 | P200: -0.3 | Q200: 0 | R200: -73.1 | S200: 68.6 | T200: -1.1 | U200: -0.3
A201: Other Sources | B201: 2.1 | C201: 0.8 | D201: 0 | E201: 0 | F201: 0 | G201: 0 | H201: 0 | I201: 0 | J201: 1.4 | K201: 74.4 | L201: 1.4 | M201: 0 | N201: 1.5 | O201: 1.1 | P201: 1 | Q201: 0 | R201: 0 | S201: 0.3 | T201: 0.4 | U201: 0.1
A202: Net Financing Cash Flow | B202: -1,073.70 | C202: -660.7 | D202: -929.4 | E202: -548.6 | F202: -104.9 | G202: -201.7 | H202: -166.5 | I202: -285.9 | J202: -836.3 | K202: -386.4 | L202: -700.5 | M202: -443.7 | N202: -585.2 | O202: -338.7 | P202: -489.6 | Q202: -145.3 | R202: -100.1 | S202: -155.3 | T202: -216.3 | U202: -95.2
A203: Growth (%) | B203: -62.52 | C203: 28.92 | D203: -69.41 | E203: -423.22 | F203: 48.03 | G203: -21.14 | H203: 41.75 | I203: 65.81 | J203: -116.41 | K203: -479.05 | L203: -43.08 | M203: -205.27 | N203: -484.74 | O203: -118.14 | P203: -126.37 | Q203: -52.61 | R203: 48.38 | S203: 24.87 | T203: -99.63 | U203: 64.05
A204: All Activities
... 695 more rows

Sheet DuPont Analysis
A1: Purpose: To break down each company’s ROE into Net Margin, Asset Turnover, and Equity Multiplier to understand what is driving performance over time.
A3: CMG | B3: Year | C3: Net Margin | D3: Asset Turnover | E3: Equity Multiplier | F3: ROE
B4: 2024 | C4: ='Raw Data'!B46 / 'Raw Data'!B14 -> 13.56% | D4: ='Raw Data'!B14 / 'Raw Data'!B104 -> 1.076284 | E4: ='Raw Data'!B104/'Raw Data'!B137 -> 2.875273523 | F4: =C4*D4*E4 -> 41.96% | J4: Revenue | L4: x14
B5: 2023 | C5: ='Raw Data'!C46 / 'Raw Data'!C14 -> 12.45% | D5: ='Raw Data'!C14 / 'Raw Data'!C104 -> 1.072767 | E5: ='Raw Data'!C104/'Raw Data'!C137 -> 3.005225343 | F5: =C5*D5*E5 -> 40.13% | J5: Net Income | L5: x46
B6: 2022 | C6: ='Raw Data'!D46 / 'Raw Data'!D14 -> 10.41% | D6: ='Raw Data'!D14 / 'Raw Data'!D104 -> 1.080688 | E6: ='Raw Data'!D104/'Raw Data'!D137 -> 3.374155405 | F6: 37.97% | J6: Total Assets | L6: x104
B7: 2021 | C7: ='Raw Data'!E46 / 'Raw Data'!E14 -> 8.65% | D7: ='Raw Data'!E14 / 'Raw Data'!E104 -> 0.987323 | E7: ='Raw Data'!E104/'Raw Data'!E137 -> 3.327818894 | F7: 28.43% | J7: Total Equity | L7: x137
B8: 2020 | C8: ='Raw Data'!F46 / 'Raw Data'!F14 -> 5.95% | D8: ='Raw Data'!F14 / 'Raw Data'!F104 -> 0.869097 | E8: ='Raw Data'!F104/'Raw Data'!F137 -> 3.408910891 | F8: 17.61%
A11: SHAK | B11: Year | C11: Net Margin | D11: Asset Turnover | E11: Equity Multiplier | F11: ROE
B12: 2024 | C12: ='Raw Data'!B268 / 'Raw Data'!B228 -> 0.82% | D12: ='Raw Data'!B228 / 'Raw Data'!B327 -> 0.7360500646 | E12: ='Raw Data'!B327/'Raw Data'!B362 -> 3.447730956 | F12: =C12*D12*E12 -> 2.07% | J12: Revenue | L12: x228
B13: 2023 | C13: ='Raw Data'!C268 / 'Raw Data'!C228 -> 1.86% | D13: ='Raw Data'!C228 / 'Raw Data'!C327 -> 0.6753586288 | E13: ='Raw Data'!C327/'Raw Data'!C362 -> 3.430549638 | F13: =C13*D13*E13 -> 4.32% | J13: Net Income | L13: x268
B14: 2022 | C14: ='Raw Data'!D268 / 'Raw Data'!D228 -> -2.36% | D14: ='Raw Data'!D228 / 'Raw Data'!D327 -> 0.5941475323 | E14: ='Raw Data'!D327/'Raw Data'!D362 -> 3.46978022 | F14: -4.86% | J14: Total Assets | L14: x327
B15: 2021 | C15: ='Raw Data'!E268 / 'Raw Data'!E228 -> -1.17% | D15: ='Raw Data'!E228 / 'Raw Data'!E327 -> 0.5064964403 | E15: ='Raw Data'!E327/'Raw Data'!E362 -> 3.353535354 | F15: -1.99% | J15: Total Equity | L15: x362
B16: 2020 | C16: ='Raw Data'!F268 / 'Raw Data'!F228 -> -8.06% | D16: ='Raw Data'!F228 / 'Raw Data'!F327 -> 0.455263387 | E16: ='Raw Data'!F327/'Raw Data'!F362 -> 2.643268124 | F16: -9.70%
A19: WING | B19: Year | C19: Net Margin | D19: Asset Turnover | E19: Equity Multiplier | F19: ROE
B20: 2024 | C20: ='Raw Data'!B495 / 'Raw Data'!B460 -> 17.37% | D20: ='Raw Data'!B460 / 'Raw Data'!B554 -> 0.843693967 | E20: ='Raw Data'!B554/'Raw Data'!B587 -> -1.097912966 | F20: =C20*D20*E20 -> -16.09% | J20: Revenue | L20: x460
B21: 2023 | C21: ='Raw Data'!C495 / 'Raw Data'!C460 -> 15.25% | D21: ='Raw Data'!C460 / 'Raw Data'!C554 -> 1.169267524 | E21: ='Raw Data'!C554/'Raw Data'!C587 -> -0.8602098819 | F21: =C21*D21*E21 -> -15.34% | J21: Net Income | L21: x495
B22: 2022 | C22: ='Raw Data'!D495 / 'Raw Data'!D460 -> 14.81% | D22: ='Raw Data'!D460 / 'Raw Data'!D554 -> 0.8131183334 | E22: ='Raw Data'!D554/'Raw Data'!D587 -> -1.124814531 | F22: =C22*D22*E22 -> -13.55% | J22: Total Assets | L22: x554
B23: 2021 | C23: ='Raw Data'!E495 / 'Raw Data'!E460 -> 15.10% | D23: ='Raw Data'!E460 / 'Raw Data'!E554 -> 1.080760549 | E23: ='Raw Data'!E554/'Raw Data'!E587 -> -0.8445557351 | F23: =C23*D23*E23 -> -13.78% | J23: Total Equity | L23: x587
B24: 2020 | C24: ='Raw Data'!F495 / 'Raw Data'!F460 -> 9.37% | D24: ='Raw Data'!F460 / 'Raw Data'!F554 -> 1.13229271 | E24: ='Raw Data'!F554/'Raw Data'!F587 -> -0.6438324055 | F24: =C24*D24*E24 -> -6.83%
A27: YUM | B27: Year | C27: Net Margin | D27: Asset Turnover | E27: Equity Multiplier | F27: ROE
B28: 2024 | C28: ='Raw Data'!B727 / 'Raw Data'!B685 -> 19.68% | D28: ='Raw Data'!B685 / 'Raw Data'!B790 -> 1.122194143 | E28: ='Raw Data'!B790/'Raw Data'!B824 -> -0.8795763598 | F28: =C28*D28*E28 -> -19.43% | J28: Revenue | L28: x685
B29: 2023 | C29: ='Raw Data'!C727 / 'Raw Data'!C685 -> 22.57% | D29: ='Raw Data'!C685 / 'Raw Data'!C790 -> 1.135612261 | E29: ='Raw Data'!C790/'Raw Data'!C824 -> -0.79294986 | F29: =C29*D29*E29 -> -20.32% | J29: Net Income | L29: x727
B30: 2022 | C30: ='Raw Data'!D727 / 'Raw Data'!D685 -> 19.37% | D30: ='Raw Data'!D685 / 'Raw Data'!D790 -> 1.170372905 | E30: ='Raw Data'!D790/'Raw Data'!D824 -> -0.6586300135 | F30: =C30*D30*E30 -> -14.93% | J30: Total Assets | L30: x790
B31: 2021 | C31: ='Raw Data'!E727 / 'Raw Data'!E685 -> 23.92% | D31: ='Raw Data'!E685 / 'Raw Data'!E790 -> 1.103586993 | E31: ='Raw Data'!E790/'Raw Data'!E824 -> -0.712528365 | F31: =C31*D31*E31 -> -18.81% | J31: Total Equity | L31: x824
B32: 2020 | C32: ='Raw Data'!F727 / 'Raw Data'!F685 -> 15.99% | D32: ='Raw Data'!F685 / 'Raw Data'!F790 -> 0.96582365 | E32: ='Raw Data'!F790/'Raw Data'!F824 -> -0.7416043594 | F32: =C32*D32*E32 -> -11.46%
A34: Concluding Statement: CMG shows the strongest and most consistent ROE drivers. SHAK’s weaker margins limit its ROE, while WING and YUM have negative equity that makes ROE less meaningful.
C35: Overall, CMG demonstrates the healthiest financial performance.

Sheet Ratio Analysis
A1: Purpose: To evaluate each company’s liquidity, leverage, efficiency, and profitability using key financial ratios in order to compare performance trends across CMG, SHAK, WING, and YUM.
A3: CMG | B3: Year | C3: Gross Margin | D3: Net Margin | E3: Asset Turnover | F3: Inventory Turnover | G3: Current Ratio | H3: Debt-to-Equity Ratio
B4: 2024 | C4: ='Raw Data'!B20 / 'Raw Data'!B14 -> 0.2371154067 | D4: ='Raw Data'!B46 / 'Raw Data'!B14 -> 0.135594269 | E4: ='Raw Data'!B14 / 'Raw Data'!B104 -> 1.076284247 | F4: ='Raw Data'!B16 / 'Raw Data'!B79 -> 176.1469388 | G4: ='Raw Data'!B84 / 'Raw Data'!B114 -> 1.523785079 | H4: =('Raw Data'!B123 - 'Raw Data'!B137) / 'Raw Data'!B137 -> 0.875273523 | L4: Revenue | N4: x14 | P4: Inventory | R4: x79
B5: 2023 | C5: ='Raw Data'!C20 / 'Raw Data'!C14 -> 0.229618299 | D5: ='Raw Data'!C46 / 'Raw Data'!C14 -> 0.1244681713 | E5: ='Raw Data'!C14 / 'Raw Data'!C104 -> 1.07276679 | F5: ='Raw Data'!C16 / 'Raw Data'!C79 -> 195 | G5: ='Raw Data'!C84 / 'Raw Data'!C114 -> 1.572870173 | H5: =('Raw Data'!C123 - 'Raw Data'!C137) / 'Raw Data'!C137 -> 1.005225343 | L5: Gross Profit | N5: x20 | P5: Current Assets | R5: x84
B6: 2022 | C6: ='Raw Data'!D20 / 'Raw Data'!D14 -> 0.2056006578 | D6: ='Raw Data'!D46 / 'Raw Data'!D14 -> 0.1041263738 | E6: ='Raw Data'!D14 / 'Raw Data'!D104 -> 1.08068836 | F6: ='Raw Data'!D16 / 'Raw Data'!D79 -> 190.5388889 | G6: ='Raw Data'!D84 / 'Raw Data'!D114 -> 1.275626424 | H6: =('Raw Data'!D123 - 'Raw Data'!D137) / 'Raw Data'!D137 -> 1.374155405 | L6: Net Income | N6: x46 | P6: Current Liabilities | R6: x114
B7: 2021 | C7: ='Raw Data'!E20 / 'Raw Data'!E14 -> 0.1924447801 | D7: ='Raw Data'!E46 / 'Raw Data'!E14 -> 0.08652330034 | E7: ='Raw Data'!E14 / 'Raw Data'!E104 -> 0.9873233909 | F7: ='Raw Data'!E16 / 'Raw Data'!E79 -> 184.6878788 | G7: ='Raw Data'!E84 / 'Raw Data'!E114 -> 1.581778643 | H7: =('Raw Data'!E123 - 'Raw Data'!E137) / 'Raw Data'!E137 -> 1.327818894 | L7: Total Assets | N7: x104 | P7: Total Debt | R7: x123
B8: 2020 | C8: ='Raw Data'!F20 / 'Raw Data'!F14 -> 0.134094175 | D8: ='Raw Data'!F46 / 'Raw Data'!F14 -> 0.05945259499 | E8: ='Raw Data'!F14 / 'Raw Data'!F104 -> 0.869096718 | F8: ='Raw Data'!F16 / 'Raw Data'!F79 -> 199.3115385 | G8: ='Raw Data'!F84 / 'Raw Data'!F114 -> 1.727073705 | H8: =('Raw Data'!F123 - 'Raw Data'!F137) / 'Raw Data'!F137 -> 1.408910891 | L8: COGS | N8: x16 | P8: Total Equity | R8: x137
A11: SHAK | B11: Year | C11: Gross Margin | D11: Net Margin | E11: Asset Turnover | F11: Inventory Turnover | G11: Current Ratio | H11: Debt-to-Equity Ratio
B12: 2024 | C12: ='Raw Data'!B235 / 'Raw Data'!B228 -> 0.1579581833 | D12: ='Raw Data'!B268 / 'Raw Data'!B228 -> 0.008150980752 | E12: ='Raw Data'!B228 / 'Raw Data'!B327 -> 0.7360500646 | F12: ='Raw Data'!B230 / 'Raw Data'!B301 -> 175.7916667 | G12: ='Raw Data'!B306 / 'Raw Data'!B337 -> 1.965725268 | H12: =('Raw Data'!B348 - 'Raw Data'!B362) / 'Raw Data'!B362 -> 1.447730956 | L12: Revenue | N12: x228 | P12: Inventory | R12: x301
B13: 2023 | C13: ='Raw Data'!C235 / 'Raw Data'!C228 -> 0.1433523673 | D13: ='Raw Data'!C268 / 'Raw Data'!C228 -> 0.01862937114 | E13: ='Raw Data'!C228 / 'Raw Data'!C327 -> 0.6753586288 | F13: ='Raw Data'!C230 / 'Raw Data'!C301 -> 172.5240741 | G13: ='Raw Data'!C306 / 'Raw Data'!C337 -> 2.038154446 | H13: =('Raw Data'!C348 - 'Raw Data'!C362) / 'Raw Data'!C362 -> 1.430549638 | L13: Gross Profit | N13: x235 | P13: Current Assets | R13: x306
B14: 2022 | C14: ='Raw Data'!D235 / 'Raw Data'!D228 -> 0.1211451543 | D14: ='Raw Data'!D268 / 'Raw Data'!D228 -> -0.02357605304 | E14: ='Raw Data'!D228 / 'Raw Data'!D327 -> 0.5941475323 | F14: ='Raw Data'!D230 / 'Raw Data'!D301 -> 188.4285714 | G14: ='Raw Data'!D306 / 'Raw Data'!D337 -> 2.32873003 | H14: =('Raw Data'!D348 - 'Raw Data'!D362) / 'Raw Data'!D362 -> 1.46978022 | L14: Net Income | N14: x268 | P14: Current Liabilities | R14: x337
B15: 2021 | C15: ='Raw Data'!E235 / 'Raw Data'!E228 -> 0.1132871102 | D15: ='Raw Data'!E268 / 'Raw Data'!E228 -> -0.01170444255 | E15: ='Raw Data'!E228 / 'Raw Data'!E327 -> 0.5064964403 | F15: ='Raw Data'!E230 / 'Raw Data'!E301 -> 168.2230769 | G15: ='Raw Data'!E306 / 'Raw Data'!E337 -> 3.372016461 | H15: =('Raw Data'!E348 - 'Raw Data'!E362) / 'Raw Data'!E362 -> 1.353535354 | L15: Total Assets | N15: x327 | P15: Total Debt | R15: x348
B16: 2020 | C16: ='Raw Data'!F235 / 'Raw Data'!F228 -> 0.07202555128 | D16: ='Raw Data'!F268 / 'Raw Data'!F228 -> -0.08063189703 | E16: ='Raw Data'!F228 / 'Raw Data'!F327 -> 0.455263387 | F16: ='Raw Data'!F230 / 'Raw Data'!F301 -> 167.3137931 | G16: ='Raw Data'!F306 / 'Raw Data'!F337 -> 1.852155683 | H16: =('Raw Data'!F348 - 'Raw Data'!F362) / 'Raw Data'!F362 -> 0.6432681243 | L16: COGS | N16: x230 | P16: Total Equity | R16: x362
A19: WING | B19: Year | C19: Gross Margin | D19: Net Margin | E19: Asset Turnover | F19: Inventory Turnover | G19: Current Ratio | H19: Debt-to-Equity Ratio
B20: 2024 | C20: ='Raw Data'!B467 / 'Raw Data'!B460 -> 0.8224381202 | D20: ='Raw Data'!B495 / 'Raw Data'!B460 -> 0.17372685 | E20: ='Raw Data'!B460 / 'Raw Data'!B554 -> 0.843693967 | F20: =IFERROR('Raw Data'!B462 / 'Raw Data'!B529, "N/A") -> N/A | G20: ='Raw Data'!B533 / 'Raw Data'!B564 -> 4.524473925 | H20: =('Raw Data'!B575 - 'Raw Data'!B587) / 'Raw Data'!B587 -> -3.097838958 | L20: Revenue | N20: x460 | P20: Inventory | R20: x529
B21: 2023 | C21: ='Raw Data'!C467 / 'Raw Data'!C460 -> 0.817654219 | D21: ='Raw Data'!C495 / 'Raw Data'!C460 -> 0.1525453202 | E21: ='Raw Data'!C460 / 'Raw Data'!C554 -> 1.169267524 | F21: ='Raw Data'!C462 / 'Raw Data'!C529 -> 155.3518519 | G21: ='Raw Data'!C533 / 'Raw Data'!C564 -> 2.032957746 | H21: =('Raw Data'!C575 - 'Raw Data'!C587) / 'Raw Data'!C587 -> -2.860078706 | L21: Gross Profit | N21: x467 | P21: Current Assets | R21: x533
B22: 2022 | C22: ='Raw Data'!D467 / 'Raw Data'!D460 -> 0.792207429 | D22: ='Raw Data'!D495 / 'Raw Data'!D460 -> 0.1481036026 | E22: ='Raw Data'!D460 / 'Raw Data'!D554 -> 0.8131183334 | F22: ='Raw Data'!D462 / 'Raw Data'!D529 -> 190.4871795 | G22: ='Raw Data'!D533 / 'Raw Data'!D564 -> 3.631950008 | H22: =('Raw Data'!D575 - 'Raw Data'!D587) / 'Raw Data'!D587 -> -3.124840113 | L22: Net Income | N22: x495 | P22: Current Liabilities | R22: x564
B23: 2021 | C23: ='Raw Data'!E467 / 'Raw Data'!E460 -> 0.7686371681 | D23: ='Raw Data'!E495 / 'Raw Data'!E460 -> 0.1510088496 | E23: ='Raw Data'!E460 / 'Raw Data'!E554 -> 1.080760549 | F23: ='Raw Data'!E462 / 'Raw Data'!E529 -> 136.1666667 | G23: ='Raw Data'!E533 / 'Raw Data'!E564 -> 1.767893145 | H23: =('Raw Data'!E575 - 'Raw Data'!E587) / 'Raw Data'!E587 -> -2.844588045 | L23: Total Assets | N23: x554 | P23: Total Debt | R23: x575
B24: 2020 | C24: ='Raw Data'!F467 / 'Raw Data'!F460 -> 0.7745267473 | D24: ='Raw Data'!F495 / 'Raw Data'!F460 -> 0.0936859451 | E24: ='Raw Data'!F460 / 'Raw Data'!F554 -> 1.13229271 | F24: ='Raw Data'!F462 / 'Raw Data'!F529 -> 140.25 | G24: ='Raw Data'!F533 / 'Raw Data'!F564 -> 1.438874579 | H24: =('Raw Data'!F575 - 'Raw Data'!F587) / 'Raw Data'!F587 -> -2.644008204 | L24: COGS | N24: x462 | P24: Total Equity | R24: x587
A27: YUM | B27: Year | C27: Gross Margin | D27: Net Margin | E27: Asset Turnover | F27: Inventory Turnover | G27: Current Ratio | H27: Debt-to-Equity Ratio
B28: 2024 | C28: ='Raw Data'!B692 / 'Raw Data'!B685 -> 0.4747648695 | D28: ='Raw Data'!B727 / 'Raw Data'!B685 -> 0.1968472645 | E28: ='Raw Data'!B685 / 'Raw Data'!B790 -> 1.122194143 | F28: =IFERROR('Raw Data'!B687 / 'Raw Data'!B764,"N/A") -> N/A | G28: ='Raw Data'!B769 / 'Raw Data'!B801 -> 1.474389283 | H28: =('Raw Data'!B811 - 'Raw Data'!B824) / 'Raw Data'!B824 -> -2.87957636 | L28: Revenue | N28: x685 | P28: Inventory | R28: x764
B29: 2023 | C29: ='Raw Data'!C692 / 'Raw Data'!C685 -> 0.4940644432 | D29: ='Raw Data'!C727 / 'Raw Data'!C685 -> 0.2256924816 | E29: ='Raw Data'!C685 / 'Raw Data'!C790 -> 1.135612261 | F29: =IFERROR('Raw Data'!C687 / 'Raw Data'!C764,"N/A") -> N/A | G29: ='Raw Data'!C769 / 'Raw Data'!C801 -> 1.259984338 | H29: =('Raw Data'!C811 - 'Raw Data'!C824) / 'Raw Data'!C824 -> -2.79294986 | L29: Gross Profit | N29: x692 | P29: Current Assets | R29: x769
B30: 2022 | C30: ='Raw Data'!D692 / 'Raw Data'!D685 -> 0.4833382052 | D30: ='Raw Data'!D727 / 'Raw Data'!D685 -> 0.1936568255 | E30: ='Raw Data'!D685 / 'Raw Data'!D790 -> 1.170372905 | F30: =IFERROR('Raw Data'!D687 / 'Raw Data'!D764,"N/A") -> N/A | G30: ='Raw Data'!D769 / 'Raw Data'!D801 -> 0.9663663664 | H30: =('Raw Data'!D811 - 'Raw Data'!D824) / 'Raw Data'!D824 -> -2.658630014 | L30: Net Income | N30: x727 | P30: Current Liabilities | R30: x801
B31: 2021 | C31: ='Raw Data'!E692 / 'Raw Data'!E685 -> 0.4808626974 | D31: ='Raw Data'!E727 / 'Raw Data'!E685 -> 0.2392162819 | E31: ='Raw Data'!E685 / 'Raw Data'!E790 -> 1.103586993 | F31: =IFERROR('Raw Data'!E687 / 'Raw Data'!E764,"N/A") -> N/A | G31: ='Raw Data'!E769 / 'Raw Data'!E801 -> 1.082685512 | H31: =('Raw Data'!E811 - 'Raw Data'!E824) / 'Raw Data'!E824 -> -2.712528365 | L31: Total Assets | N31: x790 | P31: Total Debt | R31: x811
B32: 2020 | C32: ='Raw Data'!F692 / 'Raw Data'!F685 -> 0.4754069356 | D32: ='Raw Data'!F727 / 'Raw Data'!F685 -> 0.1599433829 | E32: ='Raw Data'!F685 / 'Raw Data'!F790 -> 0.96582365 | F32: =IFERROR('Raw Data'!F687 / 'Raw Data'!F764,"N/A") -> N/A | G32: ='Raw Data'!F769 / 'Raw Data'!F801 -> 1.008358209 | H32: =('Raw Data'!F811 - 'Raw Data'!F824) / 'Raw Data'!F824 -> -2.741604359 | L32: COGS | N32: x687 | P32: Total Equity | R32: x824
A34: Conclusion Statement: CMG shows the strongest ratios. SHAK has weak margins, and WING and YUM’s negative equity makes certain ratios unreliable. Overall, CMG performs the best.

Sheet Peer Multiples
A1: Purpose: To compare CMG’s valuation multiples to competitors and see if CMG trades at a premium or discount.
A3: Company | B3: Price | C3: Forward EPS | D3: Forward P/E | E3: Sales per Share | F3: P/S | G3: Book Value per Share | H3: P/B
A4: CMG | B4: ='Raw Data'!A2 -> $31.63 | C4: ='Raw Data'!X8 -> $1.16 | D4: ='Raw Data'!X99 -> 27.3 | E4: ='Raw Data'!X114 -> 9 | F4: ='Raw Data'!X108 -> 3.50 | G4: ='Raw Data'!X94 -> 2.44 | H4: ='Raw Data'!X105 -> 12.9
A5: SHAK | B5: ='Raw Data'!A216 -> $88.20 | C5: ='Raw Data'!X222 -> 1.33 | D5: ='Raw Data'!X323 -> 66.4 | E5: ='Raw Data'!X338 -> 34.1 | F5: ='Raw Data'!X332 -> 2.6 | G5: ='Raw Data'!X318 -> 12.7 | H5: ='Raw Data'!X329 -> 6.9
A6: WING | B6: ='Raw Data'!A448 -> $246.01 | C6: ='Raw Data'!X454 -> 3.92 | D6: ='Raw Data'!X551 -> 62.8 | E6: ='Raw Data'!X565 -> 25.2 | F6: ='Raw Data'!X559 -> 9.8 | G6: ='Raw Data'!X546 -> -24.41 | H6: N/A
A7: YUM | B7: ='Raw Data'!A673 -> $152.98 | C7: ='Raw Data'!X679 -> 6.08 | D7: ='Raw Data'!X777 -> 25.2 | E7: ='Raw Data'!X791 -> 29.4 | F7: ='Raw Data'!X785 -> 5.2 | G7: ='Raw Data'!X773 -> -27.49 | H7: N/A
A9: Averages of Competitors (SHAK, WING, YUM)
B10: Peer Average Forward P/E | D10: =(D7+D6+D5)/3 -> 51.46666667
B11: Peer Average Forward P/S | D11: =(F5+F6+F7)/3 -> 5.866666667
B12: Peer Average Forward P/B | D12: =H5 -> 6.9 | E12: Note: This only includes one competitor
A15: Conclusion Statement: CMG trades below the peer averages, suggesting it may be undervalued compared to its competitors.

Sheet Valuation
A1: Purpose: To estimate CMG’s intrinsic value using peer valuation multiples (P/E, P/S, and P/B) and compare it to the current share price.
A3: Forward P/E Valuation Method
A4: Value | C4: Forward EPS | E4: x | F4: Peer Avg P/E
A5: =C5*F5 -> $59.70 | B5: = | C5: ='Peer Multiples'!C4 -> $1.16 | F5: ='Peer Multiples'!D10 -> 51.46666667 | K5: ='Peer Multiples'!C4 -> $1.16 | L5: Forward EPS
K6: ='Peer Multiples'!E4 -> 9 | L6: Sales per Share
K7: ='Peer Multiples'!G4 -> 2.44 | L7: Book Value per Share
A8: Forward P/S Valuation Method | K8: ='Peer Multiples'!D10 -> 51.46666667 | L8: Peer P/E
A9: Value | C9: Sales per Share | E9: x | F9: Peer Avg P/S | K9: ='Peer Multiples'!D11 -> 5.866666667 | L9: Peer P/S
A10: =C10*F10 -> $52.80 | B10: = | C10: ='Peer Multiples'!E4 -> $9.00 | F10: ='Peer Multiples'!D11 -> 5.866666667 | K10: ='Peer Multiples'!D12 -> 6.9 | L10: Peer P/B
A13: Forward P/B Valuation Method
A14: Value | C14: Book Value per Share | E14: x | F14: Peer Avg P/B
A15: =C15*F15 -> $16.84 | B15: = | C15: ='Peer Multiples'!G4 -> $2.44 | F15: ='Peer Multiples'!D12 -> 6.9
A19: Intrinsic Value
A20: Average of Valuations | D20: =(A5+A10+A15)/3 -> $43.11
A21: Average excluding P/B | D21: =(A5+A10)/2 -> $56.25
A24: Current Share Price | D24: ='Raw Data'!A2 -> $31.63
A26: Low Range of Upside | D26: =D20-D24 -> $11.48
A27: High Range of Upside | D27: =D21-D24 -> $24.62
A30: Conclusion Statement: The valuation results show CMG’s estimated value is above its current price, suggesting the stock is undervalued and supports a BUY recommendation.
